Workbook

Sheet List1
A1: 2800000 | B1: 15051 | D1: levá strana | E1: pravá strana | G1: suma | I1: 1 | J1: =$B$1+$B$2 -> 15051 | K1: =J1/((1+$A$10/12)^I1) -> 14988.40243
B2: 0 | D2: =A1 -> 2800000 | G2: =SUM(K1:K360) -> 2800000 | I2: 2 | J2: =$B$1+$B$2 -> 15051 | K2: =J2/((1+$A$10/12)^I2) -> 14926.0652
A3: (1+x) | B3: (1+x/12) | E3: =G2-D2 -> 9.872019291e-08 | I3: 3 | J3: 15051 | K3: 14863.98724
A4: 1 | B4: 360 | I4: 4 | J4: 15051 | K4: 14802.16746
I5: 5 | J5: 15051 | K5: 14740.60479
I6: 6 | J6: 15051 | K6: 14679.29817
I7: 7 | J7: 15051 | K7: 14618.24652
B8: F1 | I8: 8 | J8: 15051 | K8: 14557.44878
A9: RPSN sazba | B9: musí být co nejblíže 0 | I9: 9 | J9: 15051 | K9: 14496.9039
A10: 0.05011680534 | B10: =E3 -> 9.872019291e-08 | I10: 10 | J10: 15051 | K10: 14436.61084
I11: 11 | J11: 15051 | K11: 14376.56853
I12: 12 | J12: 15051 | K12: 14316.77594
I13: 13 | J13: 15051 | K13: 14257.23203
I14: 14 | J14: 15051 | K14: 14197.93576
I15: 15 | J15: 15051 | K15: 14138.88611
I16: 16 | J16: 15051 | K16: 14080.08205
I17: 17 | J17: 15051 | K17: 14021.52256
I18: 18 | J18: 15051 | K18: 13963.20662
I19: 19 | J19: 15051 | K19: 13905.13321
I20: 20 | J20: 15051 | K20: 13847.30134
I21: 21 | J21: 15051 | K21: 13789.70999
I22: 22 | J22: 15051 | K22: 13732.35816
I23: 23 | J23: 15051 | K23: 13675.24486
I24: 24 | J24: 15051 | K24: 13618.3691
I25: 25 | J25: 15051 | K25: 13561.72988
I26: 26 | J26: 15051 | K26: 13505.32623
I27: 27 | J27: 15051 | K27: 13449.15717
I28: 28 | J28: 15051 | K28: 13393.22171
I29: 29 | J29: 15051 | K29: 13337.51889
I30: 30 | J30: 15051 | K30: 13282.04774
I31: 31 | J31: 15051 | K31: 13226.8073
I32: 32 | J32: 15051 | K32: 13171.7966
I33: 33 | J33: 15051 | K33: 13117.01469
I34: 34 | J34: 15051 | K34: 13062.46063
I35: 35 | J35: 15051 | K35: 13008.13345
I36: 36 | J36: 15051 | K36: 12954.03223
I37: 37 | J37: 15051 | K37: 12900.15601
I38: 38 | J38: 15051 | K38: 12846.50386
I39: 39 | J39: 15051 | K39: 12793.07486
I40: 40 | J40: 15051 | K40: 12739.86807
I41: 41 | J41: 15051 | K41: 12686.88257
I42: 42 | J42: 15051 | K42: 12634.11743
I43: 43 | J43: 15051 | K43: 12581.57175
I44: 44 | J44: 15051 | K44: 12529.24461
I45: 45 | J45: 15051 | K45: 12477.1351
I46: 46 | J46: 15051 | K46: 12425.24231
I47: 47 | J47: 15051 | K47: 12373.56535
I48: 48 | J48: 15051 | K48: 12322.10331
I49: 49 | J49: 15051 | K49: 12270.8553
I50: 50 | J50: 15051 | K50: 12219.82044
I51: 51 | J51: 15051 | K51: 12168.99783
I52: 52 | J52: 15051 | K52: 12118.3866
I53: 53 | J53: 15051 | K53: 12067.98585
I54: 54 | J54: 15051 | K54: 12017.79473
I55: 55 | J55: 15051 | K55: 11967.81235
I56: 56 | J56: 15051 | K56: 11918.03786
I57: 57 | J57: 15051 | K57: 11868.47037
I58: 58 | J58: 15051 | K58: 11819.10904
I59: 59 | J59: 15051 | K59: 11769.953
I60: 60 | J60: 15051 | K60: 11721.00141
I61: 61 | J61: 15051 | K61: 11672.2534
I62: 62 | J62: 15051 | K62: 11623.70814
I63: 63 | J63: 15051 | K63: 11575.36478
I64: 64 | J64: 15051 | K64: 11527.22249
I65: 65 | J65: 15051 | K65: 11479.28041
I66: 66 | J66: =$B$1+$B$2 -> 15051 | K66: =J66/((1+$A$10/12)^I66) -> 11431.53774
I67: 67 | J67: 15051 | K67: 11383.99362
I68: 68 | J68: 15051 | K68: 11336.64724
I69: 69 | J69: 15051 | K69: 11289.49778
I70: 70 | J70: 15051 | K70: 11242.54441
I71: 71 | J71: 15051 | K71: 11195.78632
I72: 72 | J72: 15051 | K72: 11149.2227
I73: 73 | J73: 15051 | K73: 11102.85274
I74: 74 | J74: 15051 | K74: 11056.67564
I75: 75 | J75: 15051 | K75: 11010.69059
I76: 76 | J76: 15051 | K76: 10964.89679
I77: 77 | J77: 15051 | K77: 10919.29345
I78: 78 | J78: 15051 | K78: 10873.87977
I79: 79 | J79: 15051 | K79: 10828.65497
I80: 80 | J80: 15051 | K80: 10783.61826
I81: 81 | J81: 15051 | K81: 10738.76886
I82: 82 | J82: 15051 | K82: 10694.10599
I83: 83 | J83: 15051 | K83: 10649.62888
I84: 84 | J84: 15051 | K84: 10605.33675
I85: 85 | J85: 15051 | K85: 10561.22882
I86: 86 | J86: 15051 | K86: 10517.30435
I87: 87 | J87: 15051 | K87: 10473.56256
I88: 88 | J88: 15051 | K88: 10430.00269
I89: 89 | J89: 15051 | K89: 10386.62399
I90: 90 | J90: 15051 | K90: 10343.4257
I91: 91 | J91: 15051 | K91: 10300.40708
I92: 92 | J92: 15051 | K92: 10257.56737
I93: 93 | J93: 15051 | K93: 10214.90583
I94: 94 | J94: 15051 | K94: 10172.42172
I95: 95 | J95: 15051 | K95: 10130.11431
I96: 96 | J96: 15051 | K96: 10087.98285
I97: 97 | J97: 15051 | K97: 10046.02662
I98: 98 | J98: 15051 | K98: 10004.24489
I99: 99 | J99: 15051 | K99: 9962.63693
I100: 100 | J100: 15051 | K100: 9921.202018
I101: 101 | J101: 15051 | K101: 9879.939434
I102: 102 | J102: 15051 | K102: 9838.848463
I103: 103 | J103: 15051 | K103: 9797.928391
I104: 104 | J104: 15051 | K104: 9757.178506
I105: 105 | J105: 15051 | K105: 9716.598101
I106: 106 | J106: 15051 | K106: 9676.186472
I107: 107 | J107: 15051 | K107: 9635.942916
I108: 108 | J108: 15051 | K108: 9595.866734
I109: 109 | J109: 15051 | K109: 9555.95723
I110: 110 | J110: 15051 | K110: 9516.21371
I111: 111 | J111: 15051 | K111: 9476.635486
I112: 112 | J112: 15051 | K112: 9437.221868
I113: 113 | J113: 15051 | K113: 9397.972173
I114: 114 | J114: 15051 | K114: 9358.885718
I115: 115 | J115: 15051 | K115: 9319.961826
I116: 116 | J116: 15051 | K116: 9281.199819
I117: 117 | J117: 15051 | K117: 9242.599024
I118: 118 | J118: 15051 | K118: 9204.158771
I119: 119 | J119: 15051 | K119: 9165.878393
I120: 120 | J120: 15051 | K120: 9127.757223
I121: 121 | J121: 15051 | K121: 9089.794601
I122: 122 | J122: 15051 | K122: 9051.989867
I123: 123 | J123: 15051 | K123: 9014.342363
I124: 124 | J124: 15051 | K124: 8976.851437
I125: 125 | J125: 15051 | K125: 8939.516436
I126: 126 | J126: 15051 | K126: 8902.336713
I127: 127 | J127: 15051 | K127: 8865.311622
I128: 128 | J128: 15051 | K128: 8828.440519
I129: 129 | J129: 15051 | K129: 8791.722764
I130: 130 | J130: =$B$1+$B$2 -> 15051 | K130: =J130/((1+$A$10/12)^I130) -> 8755.15772
I131: 131 | J131: 15051 | K131: 8718.74475
I132: 132 | J132: 15051 | K132: 8682.483223
I133: 133 | J133: 15051 | K133: 8646.372509
I134: 134 | J134: 15051 | K134: 8610.411981
I135: 135 | J135: 15051 | K135: 8574.601013
I136: 136 | J136: 15051 | K136: 8538.938985
I137: 137 | J137: 15051 | K137: 8503.425276
I138: 138 | J138: 15051 | K138: 8468.059269
I139: 139 | J139: 15051 | K139: 8432.840351
I140: 140 | J140: 15051 | K140: 8397.767909
I141: 141 | J141: 15051 | K141: 8362.841335
I142: 142 | J142: 15051 | K142: 8328.060022
I143: 143 | J143: 15051 | K143: 8293.423365
I144: 144 | J144: 15051 | K144: 8258.930762
I145: 145 | J145: 15051 | K145: 8224.581616
I146: 146 | J146: 15051 | K146: 8190.375329
I147: 147 | J147: 15051 | K147: 8156.311307
I148: 148 | J148: 15051 | K148: 8122.388958
I149: 149 | J149: 15051 | K149: 8088.607693
I150: 150 | J150: 15051 | K150: 8054.966926
I151: 151 | J151: 15051 | K151: 8021.466071
I152: 152 | J152: 15051 | K152: 7988.104548
I153: 153 | J153: 15051 | K153: 7954.881776
I154: 154 | J154: 15051 | K154: 7921.797179
I155: 155 | J155: 15051 | K155: 7888.850181
I156: 156 | J156: 15051 | K156: 7856.040212
I157: 157 | J157: 15051 | K157: 7823.366699
I158: 158 | J158: 15051 | K158: 7790.829077
I159: 159 | J159: 15051 | K159: 7758.42678
I160: 160 | J160: 15051 | K160: 7726.159245
I161: 161 | J161: 15051 | K161: 7694.025912
I162: 162 | J162: 15051 | K162: 7662.026222
I163: 163 | J163: 15051 | K163: 7630.15962
I164: 164 | J164: 15051 | K164: 7598.425553
I165: 165 | J165: 15051 | K165: 7566.823468
I166: 166 | J166: 15051 | K166: 7535.352817
I167: 167 | J167: 15051 | K167: 7504.013053
I168: 168 | J168: 15051 | K168: 7472.803633
I169: 169 | J169: 15051 | K169: 7441.724013
I170: 170 | J170: 15051 | K170: 7410.773655
I171: 171 | J171: 15051 | K171: 7379.95202
I172: 172 | J172: 15051 | K172: 7349.258573
I173: 173 | J173: 15051 | K173: 7318.692782
I174: 174 | J174: 15051 | K174: 7288.254114
I175: 175 | J175: 15051 | K175: 7257.942042
I176: 176 | J176: 15051 | K176: 7227.756038
I177: 177 | J177: 15051 | K177: 7197.695579
I178: 178 | J178: 15051 | K178: 7167.760142
I179: 179 | J179: 15051 | K179: 7137.949208
I180: 180 | J180: 15051 | K180: 7108.262258
I181: 181 | J181: 15051 | K181: 7078.698778
I182: 182 | J182: 15051 | K182: 7049.258252
I183: 183 | J183: 15051 | K183: 7019.940171
I184: 184 | J184: 15051 | K184: 6990.744025
I185: 185 | J185: 15051 | K185: 6961.669306
I186: 186 | J186: 15051 | K186: 6932.71551
I187: 187 | J187: 15051 | K187: 6903.882133
I188: 188 | J188: 15051 | K188: 6875.168676
I189: 189 | J189: 15051 | K189: 6846.574638
I190: 190 | J190: 15051 | K190: 6818.099525
I191: 191 | J191: 15051 | K191: 6789.74284
I192: 192 | J192: 15051 | K192: 6761.504091
I193: 193 | J193: 15051 | K193: 6733.382788
I194: 194 | J194: =$B$1+$B$2 -> 15051 | K194: =J194/((1+$A$10/12)^I194) -> 6705.378442
I195: 195 | J195: 15051 | K195: 6677.490568
I196: 196 | J196: 15051 | K196: 6649.71868
I197: 197 | J197: 15051 | K197: 6622.062296
I198: 198 | J198: 15051 | K198: 6594.520936
I199: 199 | J199: 15051 | K199: 6567.094121
I200: 200 | J200: 15051 | K200: 6539.781375
... 160 more rows

Sheet List2
AW1: D | AX1: 365 | BB1: denní | BC1: D
A2: Výpočet RPSN u jednorázově čerpaného a pravidelně měsíčně spláceného úvěru | AQ2: Levá strana rovnice (poskytnutí úvěru) | AW2: T | AX2: 52 | BB2: týdenní | BC2: T
AW3: M | AX3: 12 | BB3: měsíční | BC3: M
A4: Výše úvěru (jednorázově čerpaného) | B4: =G8 -> 10000 | I4: měsíční | AQ4: =B4 -> 10000 | AW4: Q | AX4: 4 | BB4: čtvrtletní | BC4: Q
A5: Sjednaná pravidelná měsíční splátka | B5: 1000 | G5: 10000 | I5: Petr Kalousek, Ph.D. | AW5: S | AX5: 2 | BB5: půlroční | BC5: S
A6: Poslední měsíční splátka | B6: 1000 | E6: RPSN = | G6: 0.4412270446 | I6: Ing. Radek Urban | AW6: R | AX6: 1 | BB6: roční | BC6: R
A7: Poplatek za uzavření smlouvy 1 | B7: 100 | G7: 0 | AQ7: Pravá strana rovnice (splácení úvěru)
A8: Poplatek za uzavření smlouvy 2 | G8: =G5-G7 -> 10000
A9: Průběžný pravidelný poplatek 1 | AQ9: =SUM(BB19:BB499) -> 10000
A10: Průběžný pravidelný poplatek 2
A11: Délka období splatnosti první splátky | B11: =IF(I15=0,I13,30.41666) -> 30.41666 | C11: / | D11: =IF(OR(J11=2000,J11=2004,J11=2008,J11=2012,J11=2016,J11=2020),366,365) -> 366 | E11: dní (dle aktuálně platné zákonné konvence) | I11: 1.1.2012 | J11: =YEAR(I11) -> 2012 | AN11: Počet | AQ11: Rozdíl
A12: Počet měsíčních splátek | B12: 12 | I12: 1.2.2012 | J12: =TEXT(DATEVALUE(I12),0) -> 40940 | AN12: =pocet -> 12
A13: Sjednaná úroková sazba | B13: 0.1 | I13: =I12-I11 -> 31 | AN13: =AN12/12 -> 1 | AQ13: =AQ9-AQ4 -> -5.869878805e-09
A14: Rozdíl | B14: =AQ13 -> -5.869878805e-09 | I14: =EDATE(I11,1) -> 2012-02-01 | J14: =CONCATENATE(I14) -> 40940 | AW14: =VLOOKUP($I$4,BB1:BC6,2,0) -> M
I15: =IF(AND((J14=J12),AW14="M"),1,0) -> 1 | AW15: =VLOOKUP($AW$14,$AW$1:$AX$6,2,0) -> 12
AW16: =SUM(AY20:AY499,AZ20:BA499) -> 12000
AW17: =SUM(AY20:AY499) -> 2547.700073
AW18: období | AX18: úrok0 | AY18: úrok | AZ18: poplatky | BA18: úmor | BB18: diskont. splátky | BC18: zůstatek | BF18: měsíc | BG18: splátka | BH18: úrok | BI18: poplatky | BJ18: úmor | BK18: zůstatek
AV19: 0 | AW19: 0 | AX19: 0 | AY19: 0 | AZ19: =$B$7+$B$8 -> 100 | BA19: 0 | BB19: =AZ19 -> 100 | BC19: =credit -> 10000 | BF19: 0 | BG19: 0 | BH19: 0 | BI19: =B7+B8 -> 100 | BJ19: 0 | BK19: =credit -> 10000
AV20: 1 | AW20: 1 | AX20: =-IPMT($G$6/$AW$15,AW20,pocet,credit) -> 367.6892039 | AY20: =IF(ISERR(IPMT($G$6/$AW$15,AW20,pocet,$B$4)),0,-IPMT($G$6/$AW$15,AW20,pocet,$B$4)) -> 367.6892039 | AZ20: =IF(AY20=0,0,$B$9+$B$10) -> 0 | BA20: =IF(ISERR(AX20),0,$B$5-AY20) -> 632.3107961 | BB20: =IF(ISERR(AX20),0,IF(AND(NOT(splatka=splatka2),BF20=pocet),SUM(splatka2+AZ20)/(1+$G$6)^(prvni/konvence),SUM(splatka+AZ20)/(1+$G$6)^(prvni/konvence))) -> 970.0819947 | BC20: =IF(ISERR(AX20),0,credit-BA20) -> 9367.689204 | BF20: =IF(BH20="","",1) -> 1 | BG20: =IF(ISERR(AX20),"",IF(AND(NOT(splatka=splatka2),BF20=pocet),splatka2,splatka)) -> 1000 | BH20: =IF(OR(AY20<0,ISERR(AX20)),"",urok/$AW$15*credit) -> 83.33333333 | BI20: =IF(BH20="","",AZ20) -> 0 | BJ20: =BG20-BH20 -> 916.6666667 | BK20: =credit-BJ20 -> 9083.333333
AV21: 2 | AW21: 2 | AX21: 342.7616235 | AY21: 342.7616235 | AZ21: =IF(AY21=0,0,$B$9+$B$10) -> 0 | BA21: =IF(ISERR(AX21),0,$B$5-AY21) -> 657.2383765 | BB21: =IF(ISERR(AX21),0,IF(AND(NOT(splatka=splatka2),BF21=pocet),SUM(splatka2+AZ21)/(1+$G$6)^(prvni/konvence+AW20/$AW$15),SUM(splatka+AZ21)/(1+$G$6)^(prvni/konvence+AW20/$AW$15))) -> 940.9807601 | BC21: =IF(ISERR(AX21),0,BC20-BA21) -> 8710.450827 | BF21: =IF(BH21="","",BF20+1) -> 2 | BG21: 1000 | BH21: =IF(OR(AY21<0,ISERR(AX21)),"",urok/$AW$15*BK20) -> 75.69444444 | BI21: =IF(BH21="","",AZ21) -> 0 | BJ21: =BG21-BH21 -> 924.3055556 | BK21: =BK20-BJ21 -> 8159.027778
AV22: 3 | AW22: 3 | AX22: 316.9174829 | AY22: 316.9174829 | AZ22: 0 | BA22: 683.0825171 | BB22: 912.7525257 | BC22: =IF(ISERR(AX22),0,BC21-BA22) -> 8027.36831 | BF22: =IF(BH22="","",BF21+1) -> 3 | BG22: 1000 | BH22: 67.99189815 | BI22: 0 | BJ22: 932.0081019 | BK22: =BK21-BJ22 -> 7227.019676
AV23: 4 | AW23: 4 | AX23: 290.1230812 | AY23: 290.1230812 | AZ23: 0 | BA23: 709.8769188 | BB23: 885.3711028 | BC23: 7317.491391 | BF23: 4 | BG23: 1000 | BH23: 60.22516397 | BI23: 0 | BJ23: 939.774836 | BK23: 6287.24484
AV24: 5 | AW24: 5 | AX24: 262.3434783 | AY24: 262.3434783 | AZ24: 0 | BA24: 737.6565217 | BB24: 858.8110879 | BC24: 6579.83487 | BF24: 5 | BG24: 1000 | BH24: 52.393707 | BI24: 0 | BJ24: 947.606293 | BK24: 5339.638547
AV25: 6 | AW25: 6 | AX25: 233.5424493 | AY25: 233.5424493 | AZ25: 0 | BA25: 766.4575507 | BB25: 833.0478399 | BC25: 5813.377319 | BF25: 6 | BG25: 1000 | BH25: 44.49698789 | BI25: 0 | BJ25: 955.5030121 | BK25: 4384.135535
AV26: 7 | AW26: 7 | AX26: 203.6824376 | AY26: 203.6824376 | AZ26: 0 | BA26: 796.3175624 | BB26: 808.0574569 | BC26: 5017.059757 | BF26: 7 | BG26: 1000 | BH26: 36.53446279 | BI26: 0 | BJ26: 963.4655372 | BK26: 3420.669998
AV27: 8 | AW27: 8 | AX27: 172.7245055 | AY27: 172.7245055 | AZ27: 0 | BA27: 827.2754945 | BB27: 783.8167538 | BC27: 4189.784262 | BF27: 8 | BG27: 1000 | BH27: 28.50558331 | BI27: 0 | BJ27: 971.4944167 | BK27: 2449.175581
AV28: 9 | AW28: 9 | AX28: 140.6282837 | AY28: 140.6282837 | AZ28: 0 | BA28: 859.3717163 | BB28: 760.3032411 | BC28: 3330.412546 | BF28: 9 | BG28: 1000 | BH28: 20.40979651 | BI28: 0 | BJ28: 979.5902035 | BK28: 1469.585377
AV29: 10 | AW29: 10 | AX29: 107.3519185 | AY29: 107.3519185 | AZ29: 0 | BA29: 892.6480815 | BB29: 737.4951041 | BC29: 2437.764464 | BF29: 10 | BG29: 1000 | BH29: 12.24654481 | BI29: 0 | BJ29: 987.7534552 | BK29: 481.8319222
AV30: 11 | AW30: 11 | AX30: 72.85201718 | AY30: 72.85201718 | AZ30: 0 | BA30: 927.1479828 | BB30: 715.3711825 | BC30: 1510.616482 | BF30: 11 | BG30: 1000 | BH30: 4.015266018 | BI30: 0 | BJ30: 995.984734 | BK30: -514.1528118
AV31: 12 | AW31: 12 | AX31: 37.08359178 | AY31: 37.08359178 | AZ31: 0 | BA31: 962.9164082 | BB31: 693.9109505 | BC31: 547.7000733 | BF31: 12 | BG31: 1000 | BH31: -4.284606765 | BI31: 0 | BJ31: 1004.284607 | BK31: -1518.437419
AV32: 13 | AW32: 13 | AY32: 0 | AZ32: 0 | BA32: 0 | BB32: 0 | BC32: 0
AV33: 14 | AW33: 14 | AY33: 0 | AZ33: 0 | BA33: 0 | BB33: 0 | BC33: 0
AV34: 15 | AW34: 15 | AY34: 0 | AZ34: 0 | BA34: 0 | BB34: 0 | BC34: 0
AV35: 16 | AW35: 16 | AY35: 0 | AZ35: 0 | BA35: 0 | BB35: 0 | BC35: 0
AV36: 17 | AW36: 17 | AY36: 0 | AZ36: 0 | BA36: 0 | BB36: 0 | BC36: 0
AV37: 18 | AW37: 18 | AY37: 0 | AZ37: 0 | BA37: 0 | BB37: 0 | BC37: 0
AV38: 19 | AW38: 19 | AY38: 0 | AZ38: 0 | BA38: 0 | BB38: 0 | BC38: 0
AV39: 20 | AW39: 20 | AY39: 0 | AZ39: 0 | BA39: 0 | BB39: 0 | BC39: 0
AV40: 21 | AW40: 21 | AY40: 0 | AZ40: 0 | BA40: 0 | BB40: 0 | BC40: 0
AV41: 22 | AW41: 22 | AY41: 0 | AZ41: 0 | BA41: 0 | BB41: 0 | BC41: 0
AV42: 23 | AW42: 23 | AY42: 0 | AZ42: 0 | BA42: 0 | BB42: 0 | BC42: 0
AV43: 24 | AW43: 24 | AY43: 0 | AZ43: 0 | BA43: 0 | BB43: 0 | BC43: 0
AV44: 25 | AW44: 25 | AY44: 0 | AZ44: 0 | BA44: 0 | BB44: 0 | BC44: 0
AV45: 26 | AW45: 26 | AY45: 0 | AZ45: 0 | BA45: 0 | BB45: 0 | BC45: 0
AV46: 27 | AW46: 27 | AY46: 0 | AZ46: 0 | BA46: 0 | BB46: 0 | BC46: 0
AV47: 28 | AW47: 28 | AY47: 0 | AZ47: 0 | BA47: 0 | BB47: 0 | BC47: 0
AV48: 29 | AW48: 29 | AY48: 0 | AZ48: 0 | BA48: 0 | BB48: 0 | BC48: 0
AV49: 30 | AW49: 30 | AY49: 0 | AZ49: 0 | BA49: 0 | BB49: 0 | BC49: 0
AV50: 31 | AW50: 31 | AY50: 0 | AZ50: 0 | BA50: 0 | BB50: 0 | BC50: 0
AV51: 32 | AW51: 32 | AY51: 0 | AZ51: 0 | BA51: 0 | BB51: 0 | BC51: 0
AV52: 33 | AW52: 33 | AY52: 0 | AZ52: 0 | BA52: 0 | BB52: 0 | BC52: 0
AV53: 34 | AW53: 34 | AY53: 0 | AZ53: 0 | BA53: 0 | BB53: 0 | BC53: 0
AV54: 35 | AW54: 35 | AY54: 0 | AZ54: 0 | BA54: 0 | BB54: 0 | BC54: 0
AV55: 36 | AW55: 36 | AY55: 0 | AZ55: 0 | BA55: 0 | BB55: 0 | BC55: 0
AV56: 37 | AW56: 37 | AY56: 0 | AZ56: 0 | BA56: 0 | BB56: 0 | BC56: 0 | BF56: =IF(BH56="","",BF55+1) ->  | BI56: =IF(BH56="","",AZ56) -> 
AV57: 38 | AW57: 38 | AY57: 0 | AZ57: 0 | BA57: 0 | BB57: 0 | BC57: 0
AV58: 39 | AW58: 39 | AY58: 0 | AZ58: 0 | BA58: 0 | BB58: 0 | BC58: 0
AV59: 40 | AW59: 40 | AY59: 0 | AZ59: 0 | BA59: 0 | BB59: 0 | BC59: 0
AV60: 41 | AW60: 41 | AY60: 0 | AZ60: 0 | BA60: 0 | BB60: 0 | BC60: 0
AV61: 42 | AW61: 42 | AY61: 0 | AZ61: 0 | BA61: 0 | BB61: 0 | BC61: 0
AV62: 43 | AW62: 43 | AY62: 0 | AZ62: 0 | BA62: 0 | BB62: 0 | BC62: 0
AV63: 44 | AW63: 44 | AY63: 0 | AZ63: 0 | BA63: 0 | BB63: 0 | BC63: 0
AV64: 45 | AW64: 45 | AY64: 0 | AZ64: 0 | BA64: 0 | BB64: 0 | BC64: 0
AV65: 46 | AW65: 46 | AY65: 0 | AZ65: 0 | BA65: 0 | BB65: 0 | BC65: 0
AV66: 47 | AW66: 47 | AY66: 0 | AZ66: 0 | BA66: 0 | BB66: 0 | BC66: 0
AV67: 48 | AW67: 48 | AY67: 0 | AZ67: 0 | BA67: 0 | BB67: 0 | BC67: 0
AV68: 49 | AW68: 49 | AY68: 0 | AZ68: 0 | BA68: 0 | BB68: 0 | BC68: 0
AV69: 50 | AW69: 50 | AY69: 0 | AZ69: 0 | BA69: 0 | BB69: 0 | BC69: 0
AV70: 51 | AW70: 51 | AY70: 0 | AZ70: 0 | BA70: 0 | BB70: 0 | BC70: 0
AV71: 52 | AW71: 52 | AY71: 0 | AZ71: 0 | BA71: 0 | BB71: 0 | BC71: 0
AV72: 53 | AW72: 53 | AY72: 0 | AZ72: 0 | BA72: 0 | BB72: 0 | BC72: 0
AV73: 54 | AW73: 54 | AY73: 0 | AZ73: 0 | BA73: 0 | BB73: 0 | BC73: 0
AV74: 55 | AW74: 55 | AY74: 0 | AZ74: 0 | BA74: 0 | BB74: 0 | BC74: 0
AV75: 56 | AW75: 56 | AY75: 0 | AZ75: 0 | BA75: 0 | BB75: 0 | BC75: 0
AV76: 57 | AW76: 57 | AY76: 0 | AZ76: 0 | BA76: 0 | BB76: 0 | BC76: 0
AV77: 58 | AW77: 58 | AY77: 0 | AZ77: 0 | BA77: 0 | BB77: 0 | BC77: 0
AV78: 59 | AW78: 59 | AY78: 0 | AZ78: 0 | BA78: 0 | BB78: 0 | BC78: 0
AV79: 60 | AW79: 60 | AY79: 0 | AZ79: 0 | BA79: 0 | BB79: 0 | BC79: 0
AV80: 61 | AW80: 61 | AY80: 0 | AZ80: 0 | BA80: 0 | BB80: 0 | BC80: 0
AV81: 62 | AW81: 62 | AY81: 0 | AZ81: 0 | BA81: 0 | BB81: 0 | BC81: 0
AV82: 63 | AW82: 63 | AY82: 0 | AZ82: 0 | BA82: 0 | BB82: 0 | BC82: 0
AV83: 64 | AW83: 64 | AY83: 0 | AZ83: 0 | BA83: 0 | BB83: 0 | BC83: 0
AV84: 65 | AW84: 65 | AX84: =-IPMT($G$6/$AW$15,AW84,pocet,credit) ->  | AY84: =IF(ISERR(IPMT($G$6/$AW$15,AW84,pocet,$B$4)),0,-IPMT($G$6/$AW$15,AW84,pocet,$B$4)) -> 0 | AZ84: 0 | BA84: 0 | BB84: 0 | BC84: 0 | BG84: =IF(ISERR(AX84),"",IF(AND(NOT(splatka=splatka2),BF84=pocet),splatka2,splatka)) -> 
AV85: 66 | AW85: 66 | AY85: 0 | AZ85: =IF(AY85=0,0,$B$9+$B$10) -> 0 | BA85: =IF(ISERR(AX85),0,$B$5-AY85) -> 0 | BB85: =IF(ISERR(AX85),0,IF(AND(NOT(splatka=splatka2),BF85=pocet),SUM(splatka2+AZ85)/(1+$G$6)^(prvni/konvence+AW84/$AW$15),SUM(splatka+AZ85)/(1+$G$6)^(prvni/konvence+AW84/$AW$15))) -> 0 | BC85: 0 | BH85: =IF(OR(AY85<0,ISERR(AX85)),"",urok/$AW$15*BK84) ->  | BJ85: =BG85-BH85 -> 
AV86: 67 | AW86: 67 | AY86: 0 | AZ86: 0 | BA86: 0 | BB86: 0 | BC86: =IF(ISERR(AX86),0,BC85-BA86) -> 0 | BK86: =BK85-BJ86 -> 
AV87: 68 | AW87: 68 | AY87: 0 | AZ87: 0 | BA87: 0 | BB87: 0 | BC87: 0
AV88: 69 | AW88: 69 | AY88: 0 | AZ88: 0 | BA88: 0 | BB88: 0 | BC88: 0
AV89: 70 | AW89: 70 | AY89: 0 | AZ89: 0 | BA89: 0 | BB89: 0 | BC89: 0
AV90: 71 | AW90: 71 | AY90: 0 | AZ90: 0 | BA90: 0 | BB90: 0 | BC90: 0
AV91: 72 | AW91: 72 | AY91: 0 | AZ91: 0 | BA91: 0 | BB91: 0 | BC91: 0
AV92: 73 | AW92: 73 | AY92: 0 | AZ92: 0 | BA92: 0 | BB92: 0 | BC92: 0
AV93: 74 | AW93: 74 | AY93: 0 | AZ93: 0 | BA93: 0 | BB93: 0 | BC93: 0
AV94: 75 | AW94: 75 | AY94: 0 | AZ94: 0 | BA94: 0 | BB94: 0 | BC94: 0
AV95: 76 | AW95: 76 | AY95: 0 | AZ95: 0 | BA95: 0 | BB95: 0 | BC95: 0
AV96: 77 | AW96: 77 | AY96: 0 | AZ96: 0 | BA96: 0 | BB96: 0 | BC96: 0
AV97: 78 | AW97: 78 | AY97: 0 | AZ97: 0 | BA97: 0 | BB97: 0 | BC97: 0
AV98: 79 | AW98: 79 | AY98: 0 | AZ98: 0 | BA98: 0 | BB98: 0 | BC98: 0
AV99: 80 | AW99: 80 | AY99: 0 | AZ99: 0 | BA99: 0 | BB99: 0 | BC99: 0
AV100: 81 | AW100: 81 | AY100: 0 | AZ100: 0 | BA100: 0 | BB100: 0 | BC100: 0
AV101: 82 | AW101: 82 | AY101: 0 | AZ101: 0 | BA101: 0 | BB101: 0 | BC101: 0
AV102: 83 | AW102: 83 | AY102: 0 | AZ102: 0 | BA102: 0 | BB102: 0 | BC102: 0
AV103: 84 | AW103: 84 | AY103: 0 | AZ103: 0 | BA103: 0 | BB103: 0 | BC103: 0
AV104: 85 | AW104: 85 | AY104: 0 | AZ104: 0 | BA104: 0 | BB104: 0 | BC104: 0
AV105: 86 | AW105: 86 | AY105: 0 | AZ105: 0 | BA105: 0 | BB105: 0 | BC105: 0
AV106: 87 | AW106: 87 | AY106: 0 | AZ106: 0 | BA106: 0 | BB106: 0 | BC106: 0
AV107: 88 | AW107: 88 | AY107: 0 | AZ107: 0 | BA107: 0 | BB107: 0 | BC107: 0
AV108: 89 | AW108: 89 | AY108: 0 | AZ108: 0 | BA108: 0 | BB108: 0 | BC108: 0
AV109: 90 | AW109: 90 | AY109: 0 | AZ109: 0 | BA109: 0 | BB109: 0 | BC109: 0
AV110: 91 | AW110: 91 | AY110: 0 | AZ110: 0 | BA110: 0 | BB110: 0 | BC110: 0
AV111: 92 | AW111: 92 | AY111: 0 | AZ111: 0 | BA111: 0 | BB111: 0 | BC111: 0
AV112: 93 | AW112: 93 | AY112: 0 | AZ112: 0 | BA112: 0 | BB112: 0 | BC112: 0
AV113: 94 | AW113: 94 | AY113: 0 | AZ113: 0 | BA113: 0 | BB113: 0 | BC113: 0
AV114: 95 | AW114: 95 | AY114: 0 | AZ114: 0 | BA114: 0 | BB114: 0 | BC114: 0
AV115: 96 | AW115: 96 | AY115: 0 | AZ115: 0 | BA115: 0 | BB115: 0 | BC115: 0
AV116: 97 | AW116: 97 | AY116: 0 | AZ116: 0 | BA116: 0 | BB116: 0 | BC116: 0
AV117: 98 | AW117: 98 | AY117: 0 | AZ117: 0 | BA117: 0 | BB117: 0 | BC117: 0
AV118: 99 | AW118: 99 | AY118: 0 | AZ118: 0 | BA118: 0 | BB118: 0 | BC118: 0
AV119: 100 | AW119: 100 | AY119: 0 | AZ119: 0 | BA119: 0 | BB119: 0 | BC119: 0
AV120: 101 | AW120: 101 | AY120: 0 | AZ120: 0 | BA120: 0 | BB120: 0 | BC120: 0 | BF120: =IF(BH120="","",BF119+1) ->  | BI120: =IF(BH120="","",AZ120) -> 
AV121: 102 | AW121: 102 | AY121: 0 | AZ121: 0 | BA121: 0 | BB121: 0 | BC121: 0
AV122: 103 | AW122: 103 | AY122: 0 | AZ122: 0 | BA122: 0 | BB122: 0 | BC122: 0
AV123: 104 | AW123: 104 | AY123: 0 | AZ123: 0 | BA123: 0 | BB123: 0 | BC123: 0
AV124: 105 | AW124: 105 | AY124: 0 | AZ124: 0 | BA124: 0 | BB124: 0 | BC124: 0
AV125: 106 | AW125: 106 | AY125: 0 | AZ125: 0 | BA125: 0 | BB125: 0 | BC125: 0
AV126: 107 | AW126: 107 | AY126: 0 | AZ126: 0 | BA126: 0 | BB126: 0 | BC126: 0
AV127: 108 | AW127: 108 | AY127: 0 | AZ127: 0 | BA127: 0 | BB127: 0 | BC127: 0
AV128: 109 | AW128: 109 | AY128: 0 | AZ128: 0 | BA128: 0 | BB128: 0 | BC128: 0
AV129: 110 | AW129: 110 | AY129: 0 | AZ129: 0 | BA129: 0 | BB129: 0 | BC129: 0
AV130: 111 | AW130: 111 | AY130: 0 | AZ130: 0 | BA130: 0 | BB130: 0 | BC130: 0
AV131: 112 | AW131: 112 | AY131: 0 | AZ131: 0 | BA131: 0 | BB131: 0 | BC131: 0
AV132: 113 | AW132: 113 | AY132: 0 | AZ132: 0 | BA132: 0 | BB132: 0 | BC132: 0
AV133: 114 | AW133: 114 | AY133: 0 | AZ133: 0 | BA133: 0 | BB133: 0 | BC133: 0
AV134: 115 | AW134: 115 | AY134: 0 | AZ134: 0 | BA134: 0 | BB134: 0 | BC134: 0
AV135: 116 | AW135: 116 | AY135: 0 | AZ135: 0 | BA135: 0 | BB135: 0 | BC135: 0
AV136: 117 | AW136: 117 | AY136: 0 | AZ136: 0 | BA136: 0 | BB136: 0 | BC136: 0
AV137: 118 | AW137: 118 | AY137: 0 | AZ137: 0 | BA137: 0 | BB137: 0 | BC137: 0
AV138: 119 | AW138: 119 | AY138: 0 | AZ138: 0 | BA138: 0 | BB138: 0 | BC138: 0
AV139: 120 | AW139: 120 | AY139: 0 | AZ139: 0 | BA139: 0 | BB139: 0 | BC139: 0
AV140: 121 | AW140: 121 | AY140: 0 | AZ140: 0 | BA140: 0 | BB140: 0 | BC140: 0
AV141: 122 | AW141: 122 | AY141: 0 | AZ141: 0 | BA141: 0 | BB141: 0 | BC141: 0
AV142: 123 | AW142: 123 | AY142: 0 | AZ142: 0 | BA142: 0 | BB142: 0 | BC142: 0
AV143: 124 | AW143: 124 | AY143: 0 | AZ143: 0 | BA143: 0 | BB143: 0 | BC143: 0
AV144: 125 | AW144: 125 | AY144: 0 | AZ144: 0 | BA144: 0 | BB144: 0 | BC144: 0
AV145: 126 | AW145: 126 | AY145: 0 | AZ145: 0 | BA145: 0 | BB145: 0 | BC145: 0
AV146: 127 | AW146: 127 | AY146: 0 | AZ146: 0 | BA146: 0 | BB146: 0 | BC146: 0
AV147: 128 | AW147: 128 | AY147: 0 | AZ147: 0 | BA147: 0 | BB147: 0 | BC147: 0
AV148: 129 | AW148: 129 | AX148: =-IPMT($G$6/$AW$15,AW148,pocet,credit) ->  | AY148: =IF(ISERR(IPMT($G$6/$AW$15,AW148,pocet,$B$4)),0,-IPMT($G$6/$AW$15,AW148,pocet,$B$4)) -> 0 | AZ148: 0 | BA148: 0 | BB148: 0 | BC148: 0 | BG148: =IF(ISERR(AX148),"",IF(AND(NOT(splatka=splatka2),BF148=pocet),splatka2,splatka)) -> 
AV149: 130 | AW149: 130 | AY149: 0 | AZ149: =IF(AY149=0,0,$B$9+$B$10) -> 0 | BA149: =IF(ISERR(AX149),0,$B$5-AY149) -> 0 | BB149: =IF(ISERR(AX149),0,IF(AND(NOT(splatka=splatka2),BF149=pocet),SUM(splatka2+AZ149)/(1+$G$6)^(prvni/konvence+AW148/$AW$15),SUM(splatka+AZ149)/(1+$G$6)^(prvni/konvence+AW148/$AW$15))) -> 0 | BC149: 0 | BH149: =IF(OR(AY149<0,ISERR(AX149)),"",urok/$AW$15*BK148) ->  | BJ149: =BG149-BH149 -> 
AV150: 131 | AW150: 131 | AY150: 0 | AZ150: 0 | BA150: 0 | BB150: 0 | BC150: =IF(ISERR(AX150),0,BC149-BA150) -> 0 | BK150: =BK149-BJ150 -> 
AV151: 132 | AW151: 132 | AY151: 0 | AZ151: 0 | BA151: 0 | BB151: 0 | BC151: 0
AV152: 133 | AW152: 133 | AY152: 0 | AZ152: 0 | BA152: 0 | BB152: 0 | BC152: 0
AV153: 134 | AW153: 134 | AY153: 0 | AZ153: 0 | BA153: 0 | BB153: 0 | BC153: 0
AV154: 135 | AW154: 135 | AY154: 0 | AZ154: 0 | BA154: 0 | BB154: 0 | BC154: 0
AV155: 136 | AW155: 136 | AY155: 0 | AZ155: 0 | BA155: 0 | BB155: 0 | BC155: 0
AV156: 137 | AW156: 137 | AY156: 0 | AZ156: 0 | BA156: 0 | BB156: 0 | BC156: 0
AV157: 138 | AW157: 138 | AY157: 0 | AZ157: 0 | BA157: 0 | BB157: 0 | BC157: 0
AV158: 139 | AW158: 139 | AY158: 0 | AZ158: 0 | BA158: 0 | BB158: 0 | BC158: 0
AV159: 140 | AW159: 140 | AY159: 0 | AZ159: 0 | BA159: 0 | BB159: 0 | BC159: 0
AV160: 141 | AW160: 141 | AY160: 0 | AZ160: 0 | BA160: 0 | BB160: 0 | BC160: 0
AV161: 142 | AW161: 142 | AY161: 0 | AZ161: 0 | BA161: 0 | BB161: 0 | BC161: 0
AV162: 143 | AW162: 143 | AY162: 0 | AZ162: 0 | BA162: 0 | BB162: 0 | BC162: 0
AV163: 144 | AW163: 144 | AY163: 0 | AZ163: 0 | BA163: 0 | BB163: 0 | BC163: 0
AV164: 145 | AW164: 145 | AY164: 0 | AZ164: 0 | BA164: 0 | BB164: 0 | BC164: 0
AV165: 146 | AW165: 146 | AY165: 0 | AZ165: 0 | BA165: 0 | BB165: 0 | BC165: 0
AV166: 147 | AW166: 147 | AY166: 0 | AZ166: 0 | BA166: 0 | BB166: 0 | BC166: 0
AV167: 148 | AW167: 148 | AY167: 0 | AZ167: 0 | BA167: 0 | BB167: 0 | BC167: 0
AV168: 149 | AW168: 149 | AY168: 0 | AZ168: 0 | BA168: 0 | BB168: 0 | BC168: 0
AV169: 150 | AW169: 150 | AY169: 0 | AZ169: 0 | BA169: 0 | BB169: 0 | BC169: 0
AV170: 151 | AW170: 151 | AY170: 0 | AZ170: 0 | BA170: 0 | BB170: 0 | BC170: 0
AV171: 152 | AW171: 152 | AY171: 0 | AZ171: 0 | BA171: 0 | BB171: 0 | BC171: 0
AV172: 153 | AW172: 153 | AY172: 0 | AZ172: 0 | BA172: 0 | BB172: 0 | BC172: 0
AV173: 154 | AW173: 154 | AY173: 0 | AZ173: 0 | BA173: 0 | BB173: 0 | BC173: 0
AV174: 155 | AW174: 155 | AY174: 0 | AZ174: 0 | BA174: 0 | BB174: 0 | BC174: 0
AV175: 156 | AW175: 156 | AY175: 0 | AZ175: 0 | BA175: 0 | BB175: 0 | BC175: 0
AV176: 157 | AW176: 157 | AY176: 0 | AZ176: 0 | BA176: 0 | BB176: 0 | BC176: 0
AV177: 158 | AW177: 158 | AY177: 0 | AZ177: 0 | BA177: 0 | BB177: 0 | BC177: 0
AV178: 159 | AW178: 159 | AY178: 0 | AZ178: 0 | BA178: 0 | BB178: 0 | BC178: 0
AV179: 160 | AW179: 160 | AY179: 0 | AZ179: 0 | BA179: 0 | BB179: 0 | BC179: 0
AV180: 161 | AW180: 161 | AY180: 0 | AZ180: 0 | BA180: 0 | BB180: 0 | BC180: 0
AV181: 162 | AW181: 162 | AY181: 0 | AZ181: 0 | BA181: 0 | BB181: 0 | BC181: 0
AV182: 163 | AW182: 163 | AY182: 0 | AZ182: 0 | BA182: 0 | BB182: 0 | BC182: 0
AV183: 164 | AW183: 164 | AY183: 0 | AZ183: 0 | BA183: 0 | BB183: 0 | BC183: 0
AV184: 165 | AW184: 165 | AY184: 0 | AZ184: 0 | BA184: 0 | BB184: 0 | BC184: 0 | BF184: =IF(BH184="","",BF183+1) ->  | BI184: =IF(BH184="","",AZ184) -> 
AV185: 166 | AW185: 166 | AY185: 0 | AZ185: 0 | BA185: 0 | BB185: 0 | BC185: 0
AV186: 167 | AW186: 167 | AY186: 0 | AZ186: 0 | BA186: 0 | BB186: 0 | BC186: 0
AV187: 168 | AW187: 168 | AY187: 0 | AZ187: 0 | BA187: 0 | BB187: 0 | BC187: 0
AV188: 169 | AW188: 169 | AY188: 0 | AZ188: 0 | BA188: 0 | BB188: 0 | BC188: 0
AV189: 170 | AW189: 170 | AY189: 0 | AZ189: 0 | BA189: 0 | BB189: 0 | BC189: 0
AV190: 171 | AW190: 171 | AY190: 0 | AZ190: 0 | BA190: 0 | BB190: 0 | BC190: 0
AV191: 172 | AW191: 172 | AY191: 0 | AZ191: 0 | BA191: 0 | BB191: 0 | BC191: 0
AV192: 173 | AW192: 173 | AY192: 0 | AZ192: 0 | BA192: 0 | BB192: 0 | BC192: 0
AV193: 174 | AW193: 174 | AY193: 0 | AZ193: 0 | BA193: 0 | BB193: 0 | BC193: 0
AV194: 175 | AW194: 175 | AY194: 0 | AZ194: 0 | BA194: 0 | BB194: 0 | BC194: 0
AV195: 176 | AW195: 176 | AY195: 0 | AZ195: 0 | BA195: 0 | BB195: 0 | BC195: 0
AV196: 177 | AW196: 177 | AY196: 0 | AZ196: 0 | BA196: 0 | BB196: 0 | BC196: 0
AV197: 178 | AW197: 178 | AY197: 0 | AZ197: 0 | BA197: 0 | BB197: 0 | BC197: 0
AV198: 179 | AW198: 179 | AY198: 0 | AZ198: 0 | BA198: 0 | BB198: 0 | BC198: 0
AV199: 180 | AW199: 180 | AY199: 0 | AZ199: 0 | BA199: 0 | BB199: 0 | BC199: 0
AV200: 181 | AW200: 181 | AY200: 0 | AZ200: 0 | BA200: 0 | BB200: 0 | BC200: 0
... 299 more rows

Sheet List3
A1: Splátkový kalendář:
A3: výše úvěru: | C3: =credit -> 10000 | E3: sazba: | F3: =List2!B13 -> 0.1
A4: období | B4: =List2!BG18 -> splátka | C4: =List2!BH18 -> úrok | D4: =List2!BI18 -> poplatky | E4: =List2!BJ18 -> úmor | F4: =List2!BK18 -> zůstatek | H4: celkem na úrocích : | J4: =SUM(C5:C484) -> 481.5625815
A5: =List2!BF20 -> 1 | B5: =List2!BG20 -> 1000 | C5: =List2!BH20 -> 83.33333333 | D5: =List2!BI20 -> 0 | E5: =IF(ISERR(List2!BJ20),"",List2!BJ20) -> 916.6666667 | F5: =IF(ISERR(List2!BK20),"",List2!BK20) -> 9083.333333 | H5: celkem na poplatcích: | J5: =SUM(D5:D484) -> 0
A6: =List2!BF21 -> 2 | B6: =List2!BG21 -> 1000 | C6: =List2!BH21 -> 75.69444444 | D6: =List2!BI21 -> 0 | E6: =IF(ISERR(List2!BJ21),"",List2!BJ21) -> 924.3055556 | F6: =IF(ISERR(List2!BK21),"",List2!BK21) -> 8159.027778 | H6: celkem přeplaceno: | J6: =J4+J5 -> 481.5625815
A7: =List2!BF22 -> 3 | B7: =List2!BG22 -> 1000 | C7: =List2!BH22 -> 67.99189815 | D7: =List2!BI22 -> 0 | E7: =IF(ISERR(List2!BJ22),"",List2!BJ22) -> 932.0081019 | F7: =IF(ISERR(List2!BK22),"",List2!BK22) -> 7227.019676 | H7: přeplaceno v %: | J7: =(credit+J6)/credit-1 -> 0.04815625815
A8: =List2!BF23 -> 4 | B8: =List2!BG23 -> 1000 | C8: =List2!BH23 -> 60.22516397 | D8: =List2!BI23 -> 0 | E8: =IF(ISERR(List2!BJ23),"",List2!BJ23) -> 939.774836 | F8: =IF(ISERR(List2!BK23),"",List2!BK23) -> 6287.24484
A9: =List2!BF24 -> 5 | B9: =List2!BG24 -> 1000 | C9: =List2!BH24 -> 52.393707 | D9: =List2!BI24 -> 0 | E9: =IF(ISERR(List2!BJ24),"",List2!BJ24) -> 947.606293 | F9: =IF(ISERR(List2!BK24),"",List2!BK24) -> 5339.638547
A10: =List2!BF25 -> 6 | B10: =List2!BG25 -> 1000 | C10: =List2!BH25 -> 44.49698789 | D10: =List2!BI25 -> 0 | E10: =IF(ISERR(List2!BJ25),"",List2!BJ25) -> 955.5030121 | F10: =IF(ISERR(List2!BK25),"",List2!BK25) -> 4384.135535
A11: =List2!BF26 -> 7 | B11: =List2!BG26 -> 1000 | C11: =List2!BH26 -> 36.53446279 | D11: =List2!BI26 -> 0 | E11: =IF(ISERR(List2!BJ26),"",List2!BJ26) -> 963.4655372 | F11: =IF(ISERR(List2!BK26),"",List2!BK26) -> 3420.669998
A12: =List2!BF27 -> 8 | B12: =List2!BG27 -> 1000 | C12: =List2!BH27 -> 28.50558331 | D12: =List2!BI27 -> 0 | E12: =IF(ISERR(List2!BJ27),"",List2!BJ27) -> 971.4944167 | F12: =IF(ISERR(List2!BK27),"",List2!BK27) -> 2449.175581
A13: =List2!BF28 -> 9 | B13: =List2!BG28 -> 1000 | C13: =List2!BH28 -> 20.40979651 | D13: =List2!BI28 -> 0 | E13: =IF(ISERR(List2!BJ28),"",List2!BJ28) -> 979.5902035 | F13: =IF(ISERR(List2!BK28),"",List2!BK28) -> 1469.585377
A14: =List2!BF29 -> 10 | B14: =List2!BG29 -> 1000 | C14: =List2!BH29 -> 12.24654481 | D14: =List2!BI29 -> 0 | E14: =IF(ISERR(List2!BJ29),"",List2!BJ29) -> 987.7534552 | F14: =IF(ISERR(List2!BK29),"",List2!BK29) -> 481.8319222
A15: =List2!BF30 -> 11 | B15: =List2!BG30 -> 1000 | C15: =List2!BH30 -> 4.015266018 | D15: =List2!BI30 -> 0 | E15: =IF(ISERR(List2!BJ30),"",List2!BJ30) -> 995.984734 | F15: =IF(ISERR(List2!BK30),"",List2!BK30) -> -514.1528118
A16: =List2!BF31 -> 12 | B16: =List2!BG31 -> 1000 | C16: =List2!BH31 -> -4.284606765 | D16: =List2!BI31 -> 0 | E16: =IF(ISERR(List2!BJ31),"",List2!BJ31) -> 1004.284607 | F16: =IF(ISERR(List2!BK31),"",List2!BK31) -> -1518.437419
A17: =List2!BF32 ->  | B17: =List2!BG32 ->  | C17: =List2!BH32 ->  | D17: =List2!BI32 ->  | E17: =IF(ISERR(List2!BJ32),"",List2!BJ32) ->  | F17: =IF(ISERR(List2!BK32),"",List2!BK32) -> 
A18: =List2!BF33 ->  | B18: =List2!BG33 ->  | C18: =List2!BH33 ->  | D18: =List2!BI33 ->  | E18: =IF(ISERR(List2!BJ33),"",List2!BJ33) ->  | F18: =IF(ISERR(List2!BK33),"",List2!BK33) -> 
A19: =List2!BF34 ->  | B19: =List2!BG34 ->  | C19: =List2!BH34 ->  | D19: =List2!BI34 ->  | E19: =IF(ISERR(List2!BJ34),"",List2!BJ34) ->  | F19: =IF(ISERR(List2!BK34),"",List2!BK34) -> 
A20: =List2!BF35 ->  | B20: =List2!BG35 ->  | C20: =List2!BH35 ->  | D20: =List2!BI35 ->  | E20: =IF(ISERR(List2!BJ35),"",List2!BJ35) ->  | F20: =IF(ISERR(List2!BK35),"",List2!BK35) -> 
A21: =List2!BF36 ->  | B21: =List2!BG36 ->  | C21: =List2!BH36 ->  | D21: =List2!BI36 ->  | E21: =IF(ISERR(List2!BJ36),"",List2!BJ36) ->  | F21: =IF(ISERR(List2!BK36),"",List2!BK36) -> 
A22: =List2!BF37 ->  | B22: =List2!BG37 ->  | C22: =List2!BH37 ->  | D22: =List2!BI37 ->  | E22: =IF(ISERR(List2!BJ37),"",List2!BJ37) ->  | F22: =IF(ISERR(List2!BK37),"",List2!BK37) -> 
A23: =List2!BF38 ->  | B23: =List2!BG38 ->  | C23: =List2!BH38 ->  | D23: =List2!BI38 ->  | E23: =IF(ISERR(List2!BJ38),"",List2!BJ38) ->  | F23: =IF(ISERR(List2!BK38),"",List2!BK38) -> 
A24: =List2!BF39 ->  | B24: =List2!BG39 ->  | C24: =List2!BH39 ->  | D24: =List2!BI39 ->  | E24: =IF(ISERR(List2!BJ39),"",List2!BJ39) ->  | F24: =IF(ISERR(List2!BK39),"",List2!BK39) -> 
A25: =List2!BF40 ->  | B25: =List2!BG40 ->  | C25: =List2!BH40 ->  | D25: =List2!BI40 ->  | E25: =IF(ISERR(List2!BJ40),"",List2!BJ40) ->  | F25: =IF(ISERR(List2!BK40),"",List2!BK40) -> 
A26: =List2!BF41 ->  | B26: =List2!BG41 ->  | C26: =List2!BH41 ->  | D26: =List2!BI41 ->  | E26: =IF(ISERR(List2!BJ41),"",List2!BJ41) ->  | F26: =IF(ISERR(List2!BK41),"",List2!BK41) -> 
A27: =List2!BF42 ->  | B27: =List2!BG42 ->  | C27: =List2!BH42 ->  | D27: =List2!BI42 ->  | E27: =IF(ISERR(List2!BJ42),"",List2!BJ42) ->  | F27: =IF(ISERR(List2!BK42),"",List2!BK42) -> 
A28: =List2!BF43 ->  | B28: =List2!BG43 ->  | C28: =List2!BH43 ->  | D28: =List2!BI43 ->  | E28: =IF(ISERR(List2!BJ43),"",List2!BJ43) ->  | F28: =IF(ISERR(List2!BK43),"",List2!BK43) -> 
A29: =List2!BF44 ->  | B29: =List2!BG44 ->  | C29: =List2!BH44 ->  | D29: =List2!BI44 ->  | E29: =IF(ISERR(List2!BJ44),"",List2!BJ44) ->  | F29: =IF(ISERR(List2!BK44),"",List2!BK44) -> 
A30: =List2!BF45 ->  | B30: =List2!BG45 ->  | C30: =List2!BH45 ->  | D30: =List2!BI45 ->  | E30: =IF(ISERR(List2!BJ45),"",List2!BJ45) ->  | F30: =IF(ISERR(List2!BK45),"",List2!BK45) -> 
A31: =List2!BF46 ->  | B31: =List2!BG46 ->  | C31: =List2!BH46 ->  | D31: =List2!BI46 ->  | E31: =IF(ISERR(List2!BJ46),"",List2!BJ46) ->  | F31: =IF(ISERR(List2!BK46),"",List2!BK46) -> 
A32: =List2!BF47 ->  | B32: =List2!BG47 ->  | C32: =List2!BH47 ->  | D32: =List2!BI47 ->  | E32: =IF(ISERR(List2!BJ47),"",List2!BJ47) ->  | F32: =IF(ISERR(List2!BK47),"",List2!BK47) -> 
A33: =List2!BF48 ->  | B33: =List2!BG48 ->  | C33: =List2!BH48 ->  | D33: =List2!BI48 ->  | E33: =IF(ISERR(List2!BJ48),"",List2!BJ48) ->  | F33: =IF(ISERR(List2!BK48),"",List2!BK48) -> 
A34: =List2!BF49 ->  | B34: =List2!BG49 ->  | C34: =List2!BH49 ->  | D34: =List2!BI49 ->  | E34: =IF(ISERR(List2!BJ49),"",List2!BJ49) ->  | F34: =IF(ISERR(List2!BK49),"",List2!BK49) -> 
A35: =List2!BF50 ->  | B35: =List2!BG50 ->  | C35: =List2!BH50 ->  | D35: =List2!BI50 ->  | E35: =IF(ISERR(List2!BJ50),"",List2!BJ50) ->  | F35: =IF(ISERR(List2!BK50),"",List2!BK50) -> 
A36: =List2!BF51 ->  | B36: =List2!BG51 ->  | C36: =List2!BH51 ->  | D36: =List2!BI51 ->  | E36: =IF(ISERR(List2!BJ51),"",List2!BJ51) ->  | F36: =IF(ISERR(List2!BK51),"",List2!BK51) -> 
A37: =List2!BF52 ->  | B37: =List2!BG52 ->  | C37: =List2!BH52 ->  | D37: =List2!BI52 ->  | E37: =IF(ISERR(List2!BJ52),"",List2!BJ52) ->  | F37: =IF(ISERR(List2!BK52),"",List2!BK52) -> 
A38: =List2!BF53 ->  | B38: =List2!BG53 ->  | C38: =List2!BH53 ->  | D38: =List2!BI53 ->  | E38: =IF(ISERR(List2!BJ53),"",List2!BJ53) ->  | F38: =IF(ISERR(List2!BK53),"",List2!BK53) -> 
A39: =List2!BF54 ->  | B39: =List2!BG54 ->  | C39: =List2!BH54 ->  | D39: =List2!BI54 ->  | E39: =IF(ISERR(List2!BJ54),"",List2!BJ54) ->  | F39: =IF(ISERR(List2!BK54),"",List2!BK54) -> 
A40: =List2!BF55 ->  | B40: =List2!BG55 ->  | C40: =List2!BH55 ->  | D40: =List2!BI55 ->  | E40: =IF(ISERR(List2!BJ55),"",List2!BJ55) ->  | F40: =IF(ISERR(List2!BK55),"",List2!BK55) -> 
A41: =List2!BF56 ->  | B41: =List2!BG56 ->  | C41: =List2!BH56 ->  | D41: =List2!BI56 ->  | E41: =IF(ISERR(List2!BJ56),"",List2!BJ56) ->  | F41: =IF(ISERR(List2!BK56),"",List2!BK56) -> 
A42: =List2!BF57 ->  | B42: =List2!BG57 ->  | C42: =List2!BH57 ->  | D42: =List2!BI57 ->  | E42: =IF(ISERR(List2!BJ57),"",List2!BJ57) ->  | F42: =IF(ISERR(List2!BK57),"",List2!BK57) -> 
A43: =List2!BF58 ->  | B43: =List2!BG58 ->  | C43: =List2!BH58 ->  | D43: =List2!BI58 ->  | E43: =IF(ISERR(List2!BJ58),"",List2!BJ58) ->  | F43: =IF(ISERR(List2!BK58),"",List2!BK58) -> 
A44: =List2!BF59 ->  | B44: =List2!BG59 ->  | C44: =List2!BH59 ->  | D44: =List2!BI59 ->  | E44: =IF(ISERR(List2!BJ59),"",List2!BJ59) ->  | F44: =IF(ISERR(List2!BK59),"",List2!BK59) -> 
A45: =List2!BF60 ->  | B45: =List2!BG60 ->  | C45: =List2!BH60 ->  | D45: =List2!BI60 ->  | E45: =IF(ISERR(List2!BJ60),"",List2!BJ60) ->  | F45: =IF(ISERR(List2!BK60),"",List2!BK60) -> 
A46: =List2!BF61 ->  | B46: =List2!BG61 ->  | C46: =List2!BH61 ->  | D46: =List2!BI61 ->  | E46: =IF(ISERR(List2!BJ61),"",List2!BJ61) ->  | F46: =IF(ISERR(List2!BK61),"",List2!BK61) -> 
A47: =List2!BF62 ->  | B47: =List2!BG62 ->  | C47: =List2!BH62 ->  | D47: =List2!BI62 ->  | E47: =IF(ISERR(List2!BJ62),"",List2!BJ62) ->  | F47: =IF(ISERR(List2!BK62),"",List2!BK62) -> 
A48: =List2!BF63 ->  | B48: =List2!BG63 ->  | C48: =List2!BH63 ->  | D48: =List2!BI63 ->  | E48: =IF(ISERR(List2!BJ63),"",List2!BJ63) ->  | F48: =IF(ISERR(List2!BK63),"",List2!BK63) -> 
A49: =List2!BF64 ->  | B49: =List2!BG64 ->  | C49: =List2!BH64 ->  | D49: =List2!BI64 ->  | E49: =IF(ISERR(List2!BJ64),"",List2!BJ64) ->  | F49: =IF(ISERR(List2!BK64),"",List2!BK64) -> 
A50: =List2!BF65 ->  | B50: =List2!BG65 ->  | C50: =List2!BH65 ->  | D50: =List2!BI65 ->  | E50: =IF(ISERR(List2!BJ65),"",List2!BJ65) ->  | F50: =IF(ISERR(List2!BK65),"",List2!BK65) -> 
A51: =List2!BF66 ->  | B51: =List2!BG66 ->  | C51: =List2!BH66 ->  | D51: =List2!BI66 ->  | E51: =IF(ISERR(List2!BJ66),"",List2!BJ66) ->  | F51: =IF(ISERR(List2!BK66),"",List2!BK66) -> 
A52: =List2!BF67 ->  | B52: =List2!BG67 ->  | C52: =List2!BH67 ->  | D52: =List2!BI67 ->  | E52: =IF(ISERR(List2!BJ67),"",List2!BJ67) ->  | F52: =IF(ISERR(List2!BK67),"",List2!BK67) -> 
A53: =List2!BF68 ->  | B53: =List2!BG68 ->  | C53: =List2!BH68 ->  | D53: =List2!BI68 ->  | E53: =IF(ISERR(List2!BJ68),"",List2!BJ68) ->  | F53: =IF(ISERR(List2!BK68),"",List2!BK68) -> 
A54: =List2!BF69 ->  | B54: =List2!BG69 ->  | C54: =List2!BH69 ->  | D54: =List2!BI69 ->  | E54: =IF(ISERR(List2!BJ69),"",List2!BJ69) ->  | F54: =IF(ISERR(List2!BK69),"",List2!BK69) -> 
A55: =List2!BF70 ->  | B55: =List2!BG70 ->  | C55: =List2!BH70 ->  | D55: =List2!BI70 ->  | E55: =IF(ISERR(List2!BJ70),"",List2!BJ70) ->  | F55: =IF(ISERR(List2!BK70),"",List2!BK70) -> 
A56: =List2!BF71 ->  | B56: =List2!BG71 ->  | C56: =List2!BH71 ->  | D56: =List2!BI71 ->  | E56: =IF(ISERR(List2!BJ71),"",List2!BJ71) ->  | F56: =IF(ISERR(List2!BK71),"",List2!BK71) -> 
A57: =List2!BF72 ->  | B57: =List2!BG72 ->  | C57: =List2!BH72 ->  | D57: =List2!BI72 ->  | E57: =IF(ISERR(List2!BJ72),"",List2!BJ72) ->  | F57: =IF(ISERR(List2!BK72),"",List2!BK72) -> 
A58: =List2!BF73 ->  | B58: =List2!BG73 ->  | C58: =List2!BH73 ->  | D58: =List2!BI73 ->  | E58: =IF(ISERR(List2!BJ73),"",List2!BJ73) ->  | F58: =IF(ISERR(List2!BK73),"",List2!BK73) -> 
A59: =List2!BF74 ->  | B59: =List2!BG74 ->  | C59: =List2!BH74 ->  | D59: =List2!BI74 ->  | E59: =IF(ISERR(List2!BJ74),"",List2!BJ74) ->  | F59: =IF(ISERR(List2!BK74),"",List2!BK74) -> 
A60: =List2!BF75 ->  | B60: =List2!BG75 ->  | C60: =List2!BH75 ->  | D60: =List2!BI75 ->  | E60: =IF(ISERR(List2!BJ75),"",List2!BJ75) ->  | F60: =IF(ISERR(List2!BK75),"",List2!BK75) -> 
A61: =List2!BF76 ->  | B61: =List2!BG76 ->  | C61: =List2!BH76 ->  | D61: =List2!BI76 ->  | E61: =IF(ISERR(List2!BJ76),"",List2!BJ76) ->  | F61: =IF(ISERR(List2!BK76),"",List2!BK76) -> 
A62: =List2!BF77 ->  | B62: =List2!BG77 ->  | C62: =List2!BH77 ->  | D62: =List2!BI77 ->  | E62: =IF(ISERR(List2!BJ77),"",List2!BJ77) ->  | F62: =IF(ISERR(List2!BK77),"",List2!BK77) -> 
A63: =List2!BF78 ->  | B63: =List2!BG78 ->  | C63: =List2!BH78 ->  | D63: =List2!BI78 ->  | E63: =IF(ISERR(List2!BJ78),"",List2!BJ78) ->  | F63: =IF(ISERR(List2!BK78),"",List2!BK78) -> 
A64: =List2!BF79 ->  | B64: =List2!BG79 ->  | C64: =List2!BH79 ->  | D64: =List2!BI79 ->  | E64: =IF(ISERR(List2!BJ79),"",List2!BJ79) ->  | F64: =IF(ISERR(List2!BK79),"",List2!BK79) -> 
A65: =List2!BF80 ->  | B65: =List2!BG80 ->  | C65: =List2!BH80 ->  | D65: =List2!BI80 ->  | E65: =IF(ISERR(List2!BJ80),"",List2!BJ80) ->  | F65: =IF(ISERR(List2!BK80),"",List2!BK80) -> 
A66: =List2!BF81 ->  | B66: =List2!BG81 ->  | C66: =List2!BH81 ->  | D66: =List2!BI81 ->  | E66: =IF(ISERR(List2!BJ81),"",List2!BJ81) ->  | F66: =IF(ISERR(List2!BK81),"",List2!BK81) -> 
A67: =List2!BF82 ->  | B67: =List2!BG82 ->  | C67: =List2!BH82 ->  | D67: =List2!BI82 ->  | E67: =IF(ISERR(List2!BJ82),"",List2!BJ82) ->  | F67: =IF(ISERR(List2!BK82),"",List2!BK82) -> 
A68: =List2!BF83 ->  | B68: =List2!BG83 ->  | C68: =List2!BH83 ->  | D68: =List2!BI83 ->  | E68: =IF(ISERR(List2!BJ83),"",List2!BJ83) ->  | F68: =IF(ISERR(List2!BK83),"",List2!BK83) -> 
A69: =List2!BF84 ->  | B69: =List2!BG84 ->  | C69: =List2!BH84 ->  | D69: =List2!BI84 ->  | E69: =IF(ISERR(List2!BJ84),"",List2!BJ84) ->  | F69: =IF(ISERR(List2!BK84),"",List2!BK84) -> 
A70: =List2!BF85 ->  | B70: =List2!BG85 ->  | C70: =List2!BH85 ->  | D70: =List2!BI85 ->  | E70: =IF(ISERR(List2!BJ85),"",List2!BJ85) ->  | F70: =IF(ISERR(List2!BK85),"",List2!BK85) -> 
A71: =List2!BF86 ->  | B71: =List2!BG86 ->  | C71: =List2!BH86 ->  | D71: =List2!BI86 ->  | E71: =IF(ISERR(List2!BJ86),"",List2!BJ86) ->  | F71: =IF(ISERR(List2!BK86),"",List2!BK86) -> 
A72: =List2!BF87 ->  | B72: =List2!BG87 ->  | C72: =List2!BH87 ->  | D72: =List2!BI87 ->  | E72: =IF(ISERR(List2!BJ87),"",List2!BJ87) ->  | F72: =IF(ISERR(List2!BK87),"",List2!BK87) -> 
A73: =List2!BF88 ->  | B73: =List2!BG88 ->  | C73: =List2!BH88 ->  | D73: =List2!BI88 ->  | E73: =IF(ISERR(List2!BJ88),"",List2!BJ88) ->  | F73: =IF(ISERR(List2!BK88),"",List2!BK88) -> 
A74: =List2!BF89 ->  | B74: =List2!BG89 ->  | C74: =List2!BH89 ->  | D74: =List2!BI89 ->  | E74: =IF(ISERR(List2!BJ89),"",List2!BJ89) ->  | F74: =IF(ISERR(List2!BK89),"",List2!BK89) -> 
A75: =List2!BF90 ->  | B75: =List2!BG90 ->  | C75: =List2!BH90 ->  | D75: =List2!BI90 ->  | E75: =IF(ISERR(List2!BJ90),"",List2!BJ90) ->  | F75: =IF(ISERR(List2!BK90),"",List2!BK90) -> 
A76: =List2!BF91 ->  | B76: =List2!BG91 ->  | C76: =List2!BH91 ->  | D76: =List2!BI91 ->  | E76: =IF(ISERR(List2!BJ91),"",List2!BJ91) ->  | F76: =IF(ISERR(List2!BK91),"",List2!BK91) -> 
A77: =List2!BF92 ->  | B77: =List2!BG92 ->  | C77: =List2!BH92 ->  | D77: =List2!BI92 ->  | E77: =IF(ISERR(List2!BJ92),"",List2!BJ92) ->  | F77: =IF(ISERR(List2!BK92),"",List2!BK92) -> 
A78: =List2!BF93 ->  | B78: =List2!BG93 ->  | C78: =List2!BH93 ->  | D78: =List2!BI93 ->  | E78: =IF(ISERR(List2!BJ93),"",List2!BJ93) ->  | F78: =IF(ISERR(List2!BK93),"",List2!BK93) -> 
A79: =List2!BF94 ->  | B79: =List2!BG94 ->  | C79: =List2!BH94 ->  | D79: =List2!BI94 ->  | E79: =IF(ISERR(List2!BJ94),"",List2!BJ94) ->  | F79: =IF(ISERR(List2!BK94),"",List2!BK94) -> 
A80: =List2!BF95 ->  | B80: =List2!BG95 ->  | C80: =List2!BH95 ->  | D80: =List2!BI95 ->  | E80: =IF(ISERR(List2!BJ95),"",List2!BJ95) ->  | F80: =IF(ISERR(List2!BK95),"",List2!BK95) -> 
A81: =List2!BF96 ->  | B81: =List2!BG96 ->  | C81: =List2!BH96 ->  | D81: =List2!BI96 ->  | E81: =IF(ISERR(List2!BJ96),"",List2!BJ96) ->  | F81: =IF(ISERR(List2!BK96),"",List2!BK96) -> 
A82: =List2!BF97 ->  | B82: =List2!BG97 ->  | C82: =List2!BH97 ->  | D82: =List2!BI97 ->  | E82: =IF(ISERR(List2!BJ97),"",List2!BJ97) ->  | F82: =IF(ISERR(List2!BK97),"",List2!BK97) -> 
A83: =List2!BF98 ->  | B83: =List2!BG98 ->  | C83: =List2!BH98 ->  | D83: =List2!BI98 ->  | E83: =IF(ISERR(List2!BJ98),"",List2!BJ98) ->  | F83: =IF(ISERR(List2!BK98),"",List2!BK98) -> 
A84: =List2!BF99 ->  | B84: =List2!BG99 ->  | C84: =List2!BH99 ->  | D84: =List2!BI99 ->  | E84: =IF(ISERR(List2!BJ99),"",List2!BJ99) ->  | F84: =IF(ISERR(List2!BK99),"",List2!BK99) -> 
A85: =List2!BF100 ->  | B85: =List2!BG100 ->  | C85: =List2!BH100 ->  | D85: =List2!BI100 ->  | E85: =IF(ISERR(List2!BJ100),"",List2!BJ100) ->  | F85: =IF(ISERR(List2!BK100),"",List2!BK100) -> 
A86: =List2!BF101 ->  | B86: =List2!BG101 ->  | C86: =List2!BH101 ->  | D86: =List2!BI101 ->  | E86: =IF(ISERR(List2!BJ101),"",List2!BJ101) ->  | F86: =IF(ISERR(List2!BK101),"",List2!BK101) -> 
A87: =List2!BF102 ->  | B87: =List2!BG102 ->  | C87: =List2!BH102 ->  | D87: =List2!BI102 ->  | E87: =IF(ISERR(List2!BJ102),"",List2!BJ102) ->  | F87: =IF(ISERR(List2!BK102),"",List2!BK102) -> 
A88: =List2!BF103 ->  | B88: =List2!BG103 ->  | C88: =List2!BH103 ->  | D88: =List2!BI103 ->  | E88: =IF(ISERR(List2!BJ103),"",List2!BJ103) ->  | F88: =IF(ISERR(List2!BK103),"",List2!BK103) -> 
A89: =List2!BF104 ->  | B89: =List2!BG104 ->  | C89: =List2!BH104 ->  | D89: =List2!BI104 ->  | E89: =IF(ISERR(List2!BJ104),"",List2!BJ104) ->  | F89: =IF(ISERR(List2!BK104),"",List2!BK104) -> 
A90: =List2!BF105 ->  | B90: =List2!BG105 ->  | C90: =List2!BH105 ->  | D90: =List2!BI105 ->  | E90: =IF(ISERR(List2!BJ105),"",List2!BJ105) ->  | F90: =IF(ISERR(List2!BK105),"",List2!BK105) -> 
A91: =List2!BF106 ->  | B91: =List2!BG106 ->  | C91: =List2!BH106 ->  | D91: =List2!BI106 ->  | E91: =IF(ISERR(List2!BJ106),"",List2!BJ106) ->  | F91: =IF(ISERR(List2!BK106),"",List2!BK106) -> 
A92: =List2!BF107 ->  | B92: =List2!BG107 ->  | C92: =List2!BH107 ->  | D92: =List2!BI107 ->  | E92: =IF(ISERR(List2!BJ107),"",List2!BJ107) ->  | F92: =IF(ISERR(List2!BK107),"",List2!BK107) -> 
A93: =List2!BF108 ->  | B93: =List2!BG108 ->  | C93: =List2!BH108 ->  | D93: =List2!BI108 ->  | E93: =IF(ISERR(List2!BJ108),"",List2!BJ108) ->  | F93: =IF(ISERR(List2!BK108),"",List2!BK108) -> 
A94: =List2!BF109 ->  | B94: =List2!BG109 ->  | C94: =List2!BH109 ->  | D94: =List2!BI109 ->  | E94: =IF(ISERR(List2!BJ109),"",List2!BJ109) ->  | F94: =IF(ISERR(List2!BK109),"",List2!BK109) -> 
A95: =List2!BF110 ->  | B95: =List2!BG110 ->  | C95: =List2!BH110 ->  | D95: =List2!BI110 ->  | E95: =IF(ISERR(List2!BJ110),"",List2!BJ110) ->  | F95: =IF(ISERR(List2!BK110),"",List2!BK110) -> 
A96: =List2!BF111 ->  | B96: =List2!BG111 ->  | C96: =List2!BH111 ->  | D96: =List2!BI111 ->  | E96: =IF(ISERR(List2!BJ111),"",List2!BJ111) ->  | F96: =IF(ISERR(List2!BK111),"",List2!BK111) -> 
A97: =List2!BF112 ->  | B97: =List2!BG112 ->  | C97: =List2!BH112 ->  | D97: =List2!BI112 ->  | E97: =IF(ISERR(List2!BJ112),"",List2!BJ112) ->  | F97: =IF(ISERR(List2!BK112),"",List2!BK112) -> 
A98: =List2!BF113 ->  | B98: =List2!BG113 ->  | C98: =List2!BH113 ->  | D98: =List2!BI113 ->  | E98: =IF(ISERR(List2!BJ113),"",List2!BJ113) ->  | F98: =IF(ISERR(List2!BK113),"",List2!BK113) -> 
A99: =List2!BF114 ->  | B99: =List2!BG114 ->  | C99: =List2!BH114 ->  | D99: =List2!BI114 ->  | E99: =IF(ISERR(List2!BJ114),"",List2!BJ114) ->  | F99: =IF(ISERR(List2!BK114),"",List2!BK114) -> 
A100: =List2!BF115 ->  | B100: =List2!BG115 ->  | C100: =List2!BH115 ->  | D100: =List2!BI115 ->  | E100: =IF(ISERR(List2!BJ115),"",List2!BJ115) ->  | F100: =IF(ISERR(List2!BK115),"",List2!BK115) -> 
A101: =List2!BF116 ->  | B101: =List2!BG116 ->  | C101: =List2!BH116 ->  | D101: =List2!BI116 ->  | E101: =IF(ISERR(List2!BJ116),"",List2!BJ116) ->  | F101: =IF(ISERR(List2!BK116),"",List2!BK116) -> 
A102: =List2!BF117 ->  | B102: =List2!BG117 ->  | C102: =List2!BH117 ->  | D102: =List2!BI117 ->  | E102: =IF(ISERR(List2!BJ117),"",List2!BJ117) ->  | F102: =IF(ISERR(List2!BK117),"",List2!BK117) -> 
A103: =List2!BF118 ->  | B103: =List2!BG118 ->  | C103: =List2!BH118 ->  | D103: =List2!BI118 ->  | E103: =IF(ISERR(List2!BJ118),"",List2!BJ118) ->  | F103: =IF(ISERR(List2!BK118),"",List2!BK118) -> 
A104: =List2!BF119 ->  | B104: =List2!BG119 ->  | C104: =List2!BH119 ->  | D104: =List2!BI119 ->  | E104: =IF(ISERR(List2!BJ119),"",List2!BJ119) ->  | F104: =IF(ISERR(List2!BK119),"",List2!BK119) -> 
A105: =List2!BF120 ->  | B105: =List2!BG120 ->  | C105: =List2!BH120 ->  | D105: =List2!BI120 ->  | E105: =IF(ISERR(List2!BJ120),"",List2!BJ120) ->  | F105: =IF(ISERR(List2!BK120),"",List2!BK120) -> 
A106: =List2!BF121 ->  | B106: =List2!BG121 ->  | C106: =List2!BH121 ->  | D106: =List2!BI121 ->  | E106: =IF(ISERR(List2!BJ121),"",List2!BJ121) ->  | F106: =IF(ISERR(List2!BK121),"",List2!BK121) -> 
A107: =List2!BF122 ->  | B107: =List2!BG122 ->  | C107: =List2!BH122 ->  | D107: =List2!BI122 ->  | E107: =IF(ISERR(List2!BJ122),"",List2!BJ122) ->  | F107: =IF(ISERR(List2!BK122),"",List2!BK122) -> 
A108: =List2!BF123 ->  | B108: =List2!BG123 ->  | C108: =List2!BH123 ->  | D108: =List2!BI123 ->  | E108: =IF(ISERR(List2!BJ123),"",List2!BJ123) ->  | F108: =IF(ISERR(List2!BK123),"",List2!BK123) -> 
A109: =List2!BF124 ->  | B109: =List2!BG124 ->  | C109: =List2!BH124 ->  | D109: =List2!BI124 ->  | E109: =IF(ISERR(List2!BJ124),"",List2!BJ124) ->  | F109: =IF(ISERR(List2!BK124),"",List2!BK124) -> 
A110: =List2!BF125 ->  | B110: =List2!BG125 ->  | C110: =List2!BH125 ->  | D110: =List2!BI125 ->  | E110: =IF(ISERR(List2!BJ125),"",List2!BJ125) ->  | F110: =IF(ISERR(List2!BK125),"",List2!BK125) -> 
A111: =List2!BF126 ->  | B111: =List2!BG126 ->  | C111: =List2!BH126 ->  | D111: =List2!BI126 ->  | E111: =IF(ISERR(List2!BJ126),"",List2!BJ126) ->  | F111: =IF(ISERR(List2!BK126),"",List2!BK126) -> 
A112: =List2!BF127 ->  | B112: =List2!BG127 ->  | C112: =List2!BH127 ->  | D112: =List2!BI127 ->  | E112: =IF(ISERR(List2!BJ127),"",List2!BJ127) ->  | F112: =IF(ISERR(List2!BK127),"",List2!BK127) -> 
A113: =List2!BF128 ->  | B113: =List2!BG128 ->  | C113: =List2!BH128 ->  | D113: =List2!BI128 ->  | E113: =IF(ISERR(List2!BJ128),"",List2!BJ128) ->  | F113: =IF(ISERR(List2!BK128),"",List2!BK128) -> 
A114: =List2!BF129 ->  | B114: =List2!BG129 ->  | C114: =List2!BH129 ->  | D114: =List2!BI129 ->  | E114: =IF(ISERR(List2!BJ129),"",List2!BJ129) ->  | F114: =IF(ISERR(List2!BK129),"",List2!BK129) -> 
A115: =List2!BF130 ->  | B115: =List2!BG130 ->  | C115: =List2!BH130 ->  | D115: =List2!BI130 ->  | E115: =IF(ISERR(List2!BJ130),"",List2!BJ130) ->  | F115: =IF(ISERR(List2!BK130),"",List2!BK130) -> 
A116: =List2!BF131 ->  | B116: =List2!BG131 ->  | C116: =List2!BH131 ->  | D116: =List2!BI131 ->  | E116: =IF(ISERR(List2!BJ131),"",List2!BJ131) ->  | F116: =IF(ISERR(List2!BK131),"",List2!BK131) -> 
A117: =List2!BF132 ->  | B117: =List2!BG132 ->  | C117: =List2!BH132 ->  | D117: =List2!BI132 ->  | E117: =IF(ISERR(List2!BJ132),"",List2!BJ132) ->  | F117: =IF(ISERR(List2!BK132),"",List2!BK132) -> 
A118: =List2!BF133 ->  | B118: =List2!BG133 ->  | C118: =List2!BH133 ->  | D118: =List2!BI133 ->  | E118: =IF(ISERR(List2!BJ133),"",List2!BJ133) ->  | F118: =IF(ISERR(List2!BK133),"",List2!BK133) -> 
A119: =List2!BF134 ->  | B119: =List2!BG134 ->  | C119: =List2!BH134 ->  | D119: =List2!BI134 ->  | E119: =IF(ISERR(List2!BJ134),"",List2!BJ134) ->  | F119: =IF(ISERR(List2!BK134),"",List2!BK134) -> 
A120: =List2!BF135 ->  | B120: =List2!BG135 ->  | C120: =List2!BH135 ->  | D120: =List2!BI135 ->  | E120: =IF(ISERR(List2!BJ135),"",List2!BJ135) ->  | F120: =IF(ISERR(List2!BK135),"",List2!BK135) -> 
A121: =List2!BF136 ->  | B121: =List2!BG136 ->  | C121: =List2!BH136 ->  | D121: =List2!BI136 ->  | E121: =IF(ISERR(List2!BJ136),"",List2!BJ136) ->  | F121: =IF(ISERR(List2!BK136),"",List2!BK136) -> 
A122: =List2!BF137 ->  | B122: =List2!BG137 ->  | C122: =List2!BH137 ->  | D122: =List2!BI137 ->  | E122: =IF(ISERR(List2!BJ137),"",List2!BJ137) ->  | F122: =IF(ISERR(List2!BK137),"",List2!BK137) -> 
A123: =List2!BF138 ->  | B123: =List2!BG138 ->  | C123: =List2!BH138 ->  | D123: =List2!BI138 ->  | E123: =IF(ISERR(List2!BJ138),"",List2!BJ138) ->  | F123: =IF(ISERR(List2!BK138),"",List2!BK138) -> 
A124: =List2!BF139 ->  | B124: =List2!BG139 ->  | C124: =List2!BH139 ->  | D124: =List2!BI139 ->  | E124: =IF(ISERR(List2!BJ139),"",List2!BJ139) ->  | F124: =IF(ISERR(List2!BK139),"",List2!BK139) -> 
A125: =List2!BF140 ->  | B125: =List2!BG140 ->  | C125: =List2!BH140 ->  | D125: =List2!BI140 ->  | E125: =IF(ISERR(List2!BJ140),"",List2!BJ140) ->  | F125: =IF(ISERR(List2!BK140),"",List2!BK140) -> 
A126: =List2!BF141 ->  | B126: =List2!BG141 ->  | C126: =List2!BH141 ->  | D126: =List2!BI141 ->  | E126: =IF(ISERR(List2!BJ141),"",List2!BJ141) ->  | F126: =IF(ISERR(List2!BK141),"",List2!BK141) -> 
A127: =List2!BF142 ->  | B127: =List2!BG142 ->  | C127: =List2!BH142 ->  | D127: =List2!BI142 ->  | E127: =IF(ISERR(List2!BJ142),"",List2!BJ142) ->  | F127: =IF(ISERR(List2!BK142),"",List2!BK142) -> 
A128: =List2!BF143 ->  | B128: =List2!BG143 ->  | C128: =List2!BH143 ->  | D128: =List2!BI143 ->  | E128: =IF(ISERR(List2!BJ143),"",List2!BJ143) ->  | F128: =IF(ISERR(List2!BK143),"",List2!BK143) -> 
A129: =List2!BF144 ->  | B129: =List2!BG144 ->  | C129: =List2!BH144 ->  | D129: =List2!BI144 ->  | E129: =IF(ISERR(List2!BJ144),"",List2!BJ144) ->  | F129: =IF(ISERR(List2!BK144),"",List2!BK144) -> 
A130: =List2!BF145 ->  | B130: =List2!BG145 ->  | C130: =List2!BH145 ->  | D130: =List2!BI145 ->  | E130: =IF(ISERR(List2!BJ145),"",List2!BJ145) ->  | F130: =IF(ISERR(List2!BK145),"",List2!BK145) -> 
A131: =List2!BF146 ->  | B131: =List2!BG146 ->  | C131: =List2!BH146 ->  | D131: =List2!BI146 ->  | E131: =IF(ISERR(List2!BJ146),"",List2!BJ146) ->  | F131: =IF(ISERR(List2!BK146),"",List2!BK146) -> 
A132: =List2!BF147 ->  | B132: =List2!BG147 ->  | C132: =List2!BH147 ->  | D132: =List2!BI147 ->  | E132: =IF(ISERR(List2!BJ147),"",List2!BJ147) ->  | F132: =IF(ISERR(List2!BK147),"",List2!BK147) -> 
A133: =List2!BF148 ->  | B133: =List2!BG148 ->  | C133: =List2!BH148 ->  | D133: =List2!BI148 ->  | E133: =IF(ISERR(List2!BJ148),"",List2!BJ148) ->  | F133: =IF(ISERR(List2!BK148),"",List2!BK148) -> 
A134: =List2!BF149 ->  | B134: =List2!BG149 ->  | C134: =List2!BH149 ->  | D134: =List2!BI149 ->  | E134: =IF(ISERR(List2!BJ149),"",List2!BJ149) ->  | F134: =IF(ISERR(List2!BK149),"",List2!BK149) -> 
A135: =List2!BF150 ->  | B135: =List2!BG150 ->  | C135: =List2!BH150 ->  | D135: =List2!BI150 ->  | E135: =IF(ISERR(List2!BJ150),"",List2!BJ150) ->  | F135: =IF(ISERR(List2!BK150),"",List2!BK150) -> 
A136: =List2!BF151 ->  | B136: =List2!BG151 ->  | C136: =List2!BH151 ->  | D136: =List2!BI151 ->  | E136: =IF(ISERR(List2!BJ151),"",List2!BJ151) ->  | F136: =IF(ISERR(List2!BK151),"",List2!BK151) -> 
A137: =List2!BF152 ->  | B137: =List2!BG152 ->  | C137: =List2!BH152 ->  | D137: =List2!BI152 ->  | E137: =IF(ISERR(List2!BJ152),"",List2!BJ152) ->  | F137: =IF(ISERR(List2!BK152),"",List2!BK152) -> 
A138: =List2!BF153 ->  | B138: =List2!BG153 ->  | C138: =List2!BH153 ->  | D138: =List2!BI153 ->  | E138: =IF(ISERR(List2!BJ153),"",List2!BJ153) ->  | F138: =IF(ISERR(List2!BK153),"",List2!BK153) -> 
A139: =List2!BF154 ->  | B139: =List2!BG154 ->  | C139: =List2!BH154 ->  | D139: =List2!BI154 ->  | E139: =IF(ISERR(List2!BJ154),"",List2!BJ154) ->  | F139: =IF(ISERR(List2!BK154),"",List2!BK154) -> 
A140: =List2!BF155 ->  | B140: =List2!BG155 ->  | C140: =List2!BH155 ->  | D140: =List2!BI155 ->  | E140: =IF(ISERR(List2!BJ155),"",List2!BJ155) ->  | F140: =IF(ISERR(List2!BK155),"",List2!BK155) -> 
A141: =List2!BF156 ->  | B141: =List2!BG156 ->  | C141: =List2!BH156 ->  | D141: =List2!BI156 ->  | E141: =IF(ISERR(List2!BJ156),"",List2!BJ156) ->  | F141: =IF(ISERR(List2!BK156),"",List2!BK156) -> 
A142: =List2!BF157 ->  | B142: =List2!BG157 ->  | C142: =List2!BH157 ->  | D142: =List2!BI157 ->  | E142: =IF(ISERR(List2!BJ157),"",List2!BJ157) ->  | F142: =IF(ISERR(List2!BK157),"",List2!BK157) -> 
A143: =List2!BF158 ->  | B143: =List2!BG158 ->  | C143: =List2!BH158 ->  | D143: =List2!BI158 ->  | E143: =IF(ISERR(List2!BJ158),"",List2!BJ158) ->  | F143: =IF(ISERR(List2!BK158),"",List2!BK158) -> 
A144: =List2!BF159 ->  | B144: =List2!BG159 ->  | C144: =List2!BH159 ->  | D144: =List2!BI159 ->  | E144: =IF(ISERR(List2!BJ159),"",List2!BJ159) ->  | F144: =IF(ISERR(List2!BK159),"",List2!BK159) -> 
A145: =List2!BF160 ->  | B145: =List2!BG160 ->  | C145: =List2!BH160 ->  | D145: =List2!BI160 ->  | E145: =IF(ISERR(List2!BJ160),"",List2!BJ160) ->  | F145: =IF(ISERR(List2!BK160),"",List2!BK160) -> 
A146: =List2!BF161 ->  | B146: =List2!BG161 ->  | C146: =List2!BH161 ->  | D146: =List2!BI161 ->  | E146: =IF(ISERR(List2!BJ161),"",List2!BJ161) ->  | F146: =IF(ISERR(List2!BK161),"",List2!BK161) -> 
A147: =List2!BF162 ->  | B147: =List2!BG162 ->  | C147: =List2!BH162 ->  | D147: =List2!BI162 ->  | E147: =IF(ISERR(List2!BJ162),"",List2!BJ162) ->  | F147: =IF(ISERR(List2!BK162),"",List2!BK162) -> 
A148: =List2!BF163 ->  | B148: =List2!BG163 ->  | C148: =List2!BH163 ->  | D148: =List2!BI163 ->  | E148: =IF(ISERR(List2!BJ163),"",List2!BJ163) ->  | F148: =IF(ISERR(List2!BK163),"",List2!BK163) -> 
A149: =List2!BF164 ->  | B149: =List2!BG164 ->  | C149: =List2!BH164 ->  | D149: =List2!BI164 ->  | E149: =IF(ISERR(List2!BJ164),"",List2!BJ164) ->  | F149: =IF(ISERR(List2!BK164),"",List2!BK164) -> 
A150: =List2!BF165 ->  | B150: =List2!BG165 ->  | C150: =List2!BH165 ->  | D150: =List2!BI165 ->  | E150: =IF(ISERR(List2!BJ165),"",List2!BJ165) ->  | F150: =IF(ISERR(List2!BK165),"",List2!BK165) -> 
A151: =List2!BF166 ->  | B151: =List2!BG166 ->  | C151: =List2!BH166 ->  | D151: =List2!BI166 ->  | E151: =IF(ISERR(List2!BJ166),"",List2!BJ166) ->  | F151: =IF(ISERR(List2!BK166),"",List2!BK166) -> 
A152: =List2!BF167 ->  | B152: =List2!BG167 ->  | C152: =List2!BH167 ->  | D152: =List2!BI167 ->  | E152: =IF(ISERR(List2!BJ167),"",List2!BJ167) ->  | F152: =IF(ISERR(List2!BK167),"",List2!BK167) -> 
A153: =List2!BF168 ->  | B153: =List2!BG168 ->  | C153: =List2!BH168 ->  | D153: =List2!BI168 ->  | E153: =IF(ISERR(List2!BJ168),"",List2!BJ168) ->  | F153: =IF(ISERR(List2!BK168),"",List2!BK168) -> 
A154: =List2!BF169 ->  | B154: =List2!BG169 ->  | C154: =List2!BH169 ->  | D154: =List2!BI169 ->  | E154: =IF(ISERR(List2!BJ169),"",List2!BJ169) ->  | F154: =IF(ISERR(List2!BK169),"",List2!BK169) -> 
A155: =List2!BF170 ->  | B155: =List2!BG170 ->  | C155: =List2!BH170 ->  | D155: =List2!BI170 ->  | E155: =IF(ISERR(List2!BJ170),"",List2!BJ170) ->  | F155: =IF(ISERR(List2!BK170),"",List2!BK170) -> 
A156: =List2!BF171 ->  | B156: =List2!BG171 ->  | C156: =List2!BH171 ->  | D156: =List2!BI171 ->  | E156: =IF(ISERR(List2!BJ171),"",List2!BJ171) ->  | F156: =IF(ISERR(List2!BK171),"",List2!BK171) -> 
A157: =List2!BF172 ->  | B157: =List2!BG172 ->  | C157: =List2!BH172 ->  | D157: =List2!BI172 ->  | E157: =IF(ISERR(List2!BJ172),"",List2!BJ172) ->  | F157: =IF(ISERR(List2!BK172),"",List2!BK172) -> 
A158: =List2!BF173 ->  | B158: =List2!BG173 ->  | C158: =List2!BH173 ->  | D158: =List2!BI173 ->  | E158: =IF(ISERR(List2!BJ173),"",List2!BJ173) ->  | F158: =IF(ISERR(List2!BK173),"",List2!BK173) -> 
A159: =List2!BF174 ->  | B159: =List2!BG174 ->  | C159: =List2!BH174 ->  | D159: =List2!BI174 ->  | E159: =IF(ISERR(List2!BJ174),"",List2!BJ174) ->  | F159: =IF(ISERR(List2!BK174),"",List2!BK174) -> 
A160: =List2!BF175 ->  | B160: =List2!BG175 ->  | C160: =List2!BH175 ->  | D160: =List2!BI175 ->  | E160: =IF(ISERR(List2!BJ175),"",List2!BJ175) ->  | F160: =IF(ISERR(List2!BK175),"",List2!BK175) -> 
A161: =List2!BF176 ->  | B161: =List2!BG176 ->  | C161: =List2!BH176 ->  | D161: =List2!BI176 ->  | E161: =IF(ISERR(List2!BJ176),"",List2!BJ176) ->  | F161: =IF(ISERR(List2!BK176),"",List2!BK176) -> 
A162: =List2!BF177 ->  | B162: =List2!BG177 ->  | C162: =List2!BH177 ->  | D162: =List2!BI177 ->  | E162: =IF(ISERR(List2!BJ177),"",List2!BJ177) ->  | F162: =IF(ISERR(List2!BK177),"",List2!BK177) -> 
A163: =List2!BF178 ->  | B163: =List2!BG178 ->  | C163: =List2!BH178 ->  | D163: =List2!BI178 ->  | E163: =IF(ISERR(List2!BJ178),"",List2!BJ178) ->  | F163: =IF(ISERR(List2!BK178),"",List2!BK178) -> 
A164: =List2!BF179 ->  | B164: =List2!BG179 ->  | C164: =List2!BH179 ->  | D164: =List2!BI179 ->  | E164: =IF(ISERR(List2!BJ179),"",List2!BJ179) ->  | F164: =IF(ISERR(List2!BK179),"",List2!BK179) -> 
A165: =List2!BF180 ->  | B165: =List2!BG180 ->  | C165: =List2!BH180 ->  | D165: =List2!BI180 ->  | E165: =IF(ISERR(List2!BJ180),"",List2!BJ180) ->  | F165: =IF(ISERR(List2!BK180),"",List2!BK180) -> 
A166: =List2!BF181 ->  | B166: =List2!BG181 ->  | C166: =List2!BH181 ->  | D166: =List2!BI181 ->  | E166: =IF(ISERR(List2!BJ181),"",List2!BJ181) ->  | F166: =IF(ISERR(List2!BK181),"",List2!BK181) -> 
A167: =List2!BF182 ->  | B167: =List2!BG182 ->  | C167: =List2!BH182 ->  | D167: =List2!BI182 ->  | E167: =IF(ISERR(List2!BJ182),"",List2!BJ182) ->  | F167: =IF(ISERR(List2!BK182),"",List2!BK182) -> 
A168: =List2!BF183 ->  | B168: =List2!BG183 ->  | C168: =List2!BH183 ->  | D168: =List2!BI183 ->  | E168: =IF(ISERR(List2!BJ183),"",List2!BJ183) ->  | F168: =IF(ISERR(List2!BK183),"",List2!BK183) -> 
A169: =List2!BF184 ->  | B169: =List2!BG184 ->  | C169: =List2!BH184 ->  | D169: =List2!BI184 ->  | E169: =IF(ISERR(List2!BJ184),"",List2!BJ184) ->  | F169: =IF(ISERR(List2!BK184),"",List2!BK184) -> 
A170: =List2!BF185 ->  | B170: =List2!BG185 ->  | C170: =List2!BH185 ->  | D170: =List2!BI185 ->  | E170: =IF(ISERR(List2!BJ185),"",List2!BJ185) ->  | F170: =IF(ISERR(List2!BK185),"",List2!BK185) -> 
A171: =List2!BF186 ->  | B171: =List2!BG186 ->  | C171: =List2!BH186 ->  | D171: =List2!BI186 ->  | E171: =IF(ISERR(List2!BJ186),"",List2!BJ186) ->  | F171: =IF(ISERR(List2!BK186),"",List2!BK186) -> 
A172: =List2!BF187 ->  | B172: =List2!BG187 ->  | C172: =List2!BH187 ->  | D172: =List2!BI187 ->  | E172: =IF(ISERR(List2!BJ187),"",List2!BJ187) ->  | F172: =IF(ISERR(List2!BK187),"",List2!BK187) -> 
A173: =List2!BF188 ->  | B173: =List2!BG188 ->  | C173: =List2!BH188 ->  | D173: =List2!BI188 ->  | E173: =IF(ISERR(List2!BJ188),"",List2!BJ188) ->  | F173: =IF(ISERR(List2!BK188),"",List2!BK188) -> 
A174: =List2!BF189 ->  | B174: =List2!BG189 ->  | C174: =List2!BH189 ->  | D174: =List2!BI189 ->  | E174: =IF(ISERR(List2!BJ189),"",List2!BJ189) ->  | F174: =IF(ISERR(List2!BK189),"",List2!BK189) -> 
A175: =List2!BF190 ->  | B175: =List2!BG190 ->  | C175: =List2!BH190 ->  | D175: =List2!BI190 ->  | E175: =IF(ISERR(List2!BJ190),"",List2!BJ190) ->  | F175: =IF(ISERR(List2!BK190),"",List2!BK190) -> 
A176: =List2!BF191 ->  | B176: =List2!BG191 ->  | C176: =List2!BH191 ->  | D176: =List2!BI191 ->  | E176: =IF(ISERR(List2!BJ191),"",List2!BJ191) ->  | F176: =IF(ISERR(List2!BK191),"",List2!BK191) -> 
A177: =List2!BF192 ->  | B177: =List2!BG192 ->  | C177: =List2!BH192 ->  | D177: =List2!BI192 ->  | E177: =IF(ISERR(List2!BJ192),"",List2!BJ192) ->  | F177: =IF(ISERR(List2!BK192),"",List2!BK192) -> 
A178: =List2!BF193 ->  | B178: =List2!BG193 ->  | C178: =List2!BH193 ->  | D178: =List2!BI193 ->  | E178: =IF(ISERR(List2!BJ193),"",List2!BJ193) ->  | F178: =IF(ISERR(List2!BK193),"",List2!BK193) -> 
A179: =List2!BF194 ->  | B179: =List2!BG194 ->  | C179: =List2!BH194 ->  | D179: =List2!BI194 ->  | E179: =IF(ISERR(List2!BJ194),"",List2!BJ194) ->  | F179: =IF(ISERR(List2!BK194),"",List2!BK194) -> 
A180: =List2!BF195 ->  | B180: =List2!BG195 ->  | C180: =List2!BH195 ->  | D180: =List2!BI195 ->  | E180: =IF(ISERR(List2!BJ195),"",List2!BJ195) ->  | F180: =IF(ISERR(List2!BK195),"",List2!BK195) -> 
A181: =List2!BF196 ->  | B181: =List2!BG196 ->  | C181: =List2!BH196 ->  | D181: =List2!BI196 ->  | E181: =IF(ISERR(List2!BJ196),"",List2!BJ196) ->  | F181: =IF(ISERR(List2!BK196),"",List2!BK196) -> 
A182: =List2!BF197 ->  | B182: =List2!BG197 ->  | C182: =List2!BH197 ->  | D182: =List2!BI197 ->  | E182: =IF(ISERR(List2!BJ197),"",List2!BJ197) ->  | F182: =IF(ISERR(List2!BK197),"",List2!BK197) -> 
A183: =List2!BF198 ->  | B183: =List2!BG198 ->  | C183: =List2!BH198 ->  | D183: =List2!BI198 ->  | E183: =IF(ISERR(List2!BJ198),"",List2!BJ198) ->  | F183: =IF(ISERR(List2!BK198),"",List2!BK198) -> 
A184: =List2!BF199 ->  | B184: =List2!BG199 ->  | C184: =List2!BH199 ->  | D184: =List2!BI199 ->  | E184: =IF(ISERR(List2!BJ199),"",List2!BJ199) ->  | F184: =IF(ISERR(List2!BK199),"",List2!BK199) -> 
A185: =List2!BF200 ->  | B185: =List2!BG200 ->  | C185: =List2!BH200 ->  | D185: =List2!BI200 ->  | E185: =IF(ISERR(List2!BJ200),"",List2!BJ200) ->  | F185: =IF(ISERR(List2!BK200),"",List2!BK200) -> 
A186: =List2!BF201 ->  | B186: =List2!BG201 ->  | C186: =List2!BH201 ->  | D186: =List2!BI201 ->  | E186: =IF(ISERR(List2!BJ201),"",List2!BJ201) ->  | F186: =IF(ISERR(List2!BK201),"",List2!BK201) -> 
A187: =List2!BF202 ->  | B187: =List2!BG202 ->  | C187: =List2!BH202 ->  | D187: =List2!BI202 ->  | E187: =IF(ISERR(List2!BJ202),"",List2!BJ202) ->  | F187: =IF(ISERR(List2!BK202),"",List2!BK202) -> 
A188: =List2!BF203 ->  | B188: =List2!BG203 ->  | C188: =List2!BH203 ->  | D188: =List2!BI203 ->  | E188: =IF(ISERR(List2!BJ203),"",List2!BJ203) ->  | F188: =IF(ISERR(List2!BK203),"",List2!BK203) -> 
A189: =List2!BF204 ->  | B189: =List2!BG204 ->  | C189: =List2!BH204 ->  | D189: =List2!BI204 ->  | E189: =IF(ISERR(List2!BJ204),"",List2!BJ204) ->  | F189: =IF(ISERR(List2!BK204),"",List2!BK204) -> 
A190: =List2!BF205 ->  | B190: =List2!BG205 ->  | C190: =List2!BH205 ->  | D190: =List2!BI205 ->  | E190: =IF(ISERR(List2!BJ205),"",List2!BJ205) ->  | F190: =IF(ISERR(List2!BK205),"",List2!BK205) -> 
A191: =List2!BF206 ->  | B191: =List2!BG206 ->  | C191: =List2!BH206 ->  | D191: =List2!BI206 ->  | E191: =IF(ISERR(List2!BJ206),"",List2!BJ206) ->  | F191: =IF(ISERR(List2!BK206),"",List2!BK206) -> 
A192: =List2!BF207 ->  | B192: =List2!BG207 ->  | C192: =List2!BH207 ->  | D192: =List2!BI207 ->  | E192: =IF(ISERR(List2!BJ207),"",List2!BJ207) ->  | F192: =IF(ISERR(List2!BK207),"",List2!BK207) -> 
A193: =List2!BF208 ->  | B193: =List2!BG208 ->  | C193: =List2!BH208 ->  | D193: =List2!BI208 ->  | E193: =IF(ISERR(List2!BJ208),"",List2!BJ208) ->  | F193: =IF(ISERR(List2!BK208),"",List2!BK208) -> 
A194: =List2!BF209 ->  | B194: =List2!BG209 ->  | C194: =List2!BH209 ->  | D194: =List2!BI209 ->  | E194: =IF(ISERR(List2!BJ209),"",List2!BJ209) ->  | F194: =IF(ISERR(List2!BK209),"",List2!BK209) -> 
A195: =List2!BF210 ->  | B195: =List2!BG210 ->  | C195: =List2!BH210 ->  | D195: =List2!BI210 ->  | E195: =IF(ISERR(List2!BJ210),"",List2!BJ210) ->  | F195: =IF(ISERR(List2!BK210),"",List2!BK210) -> 
A196: =List2!BF211 ->  | B196: =List2!BG211 ->  | C196: =List2!BH211 ->  | D196: =List2!BI211 ->  | E196: =IF(ISERR(List2!BJ211),"",List2!BJ211) ->  | F196: =IF(ISERR(List2!BK211),"",List2!BK211) -> 
A197: =List2!BF212 ->  | B197: =List2!BG212 ->  | C197: =List2!BH212 ->  | D197: =List2!BI212 ->  | E197: =IF(ISERR(List2!BJ212),"",List2!BJ212) ->  | F197: =IF(ISERR(List2!BK212),"",List2!BK212) -> 
A198: =List2!BF213 ->  | B198: =List2!BG213 ->  | C198: =List2!BH213 ->  | D198: =List2!BI213 ->  | E198: =IF(ISERR(List2!BJ213),"",List2!BJ213) ->  | F198: =IF(ISERR(List2!BK213),"",List2!BK213) -> 
A199: =List2!BF214 ->  | B199: =List2!BG214 ->  | C199: =List2!BH214 ->  | D199: =List2!BI214 ->  | E199: =IF(ISERR(List2!BJ214),"",List2!BJ214) ->  | F199: =IF(ISERR(List2!BK214),"",List2!BK214) -> 
A200: =List2!BF215 ->  | B200: =List2!BG215 ->  | C200: =List2!BH215 ->  | D200: =List2!BI215 ->  | E200: =IF(ISERR(List2!BJ215),"",List2!BJ215) ->  | F200: =IF(ISERR(List2!BK215),"",List2!BK215) -> 
A201: =List2!BF216 ->  | B201: =List2!BG216 ->  | C201: =List2!BH216 ->  | D201: =List2!BI216 ->  | E201: =IF(ISERR(List2!BJ216),"",List2!BJ216) ->  | F201: =IF(ISERR(List2!BK216),"",List2!BK216) -> 
... 283 more rows

Sheet List4
B2: Kalkulátor RPSN
B3: v. 1.3b | C3: KFA@ 2014
B5: Tato aplikace je využitelná k výpočtu roční procentní sazby nákladů na spotřebitelský úvěr (RPSN) ve smyslu § 10 zákona č. 145/2010 Sb., o spotřebitelském úvěru. Věřitel (poskytovatel úvěru), případně zprostředkovatel, má podle zákona č. 145/2010 Sb. povinnost dlužníka (zájemce o úvěr) s touto hodnotou seznámit před případným uzavřením smlouvy, rovněž jako v rámci reklamy, obsahuje-li tato reklama jakékoli sdělení o nákladech úvěru. Údaj o výši RPSN je povinnou náležitostí smlouvy. Kalkulátor RPSN vychází z předpokladu, že úvěr je čerpán jednorázově a v plné výši, rovněž jako že je splácen anuitně - tj. v pravidelném intervalu (např. měsíčním) s neměnnou výší splátky. Jsou-li součástí úvěrové smlouvy průběžně placené poplatky, vychází se z toho, že jsou placeny společně se splátkami úvěru.
B20: UPOZORNĚNÍ: Funkčnost tohoto kalkulátoru je omezená jen na vybrané typy spotřebitelských úvěrů. Plnohodnotný kalkulátor pro výpočet RPSN je k dispozici na webových stránkách Evropské komise:
B25: UPOZORNĚNÍ: Funkčnost tohoto kalkulátoru je omezená jen na vybrané typy spotřebitelských úvěrů. Plnohodnotný kalkulátor pro výpočet RPSN je k dispozici na
B26: webových stránkách Evropské komise: | F26: http://ec.europa.eu/consumers/rights/docs/simulator_2014_en.xls
B27: RSPN vyjadřuje celkové náklady spotřebitelského úvěru pro spotřebitele vyjádřené jako roční procentní podíl z celkové výše spotřebitelského úvěru. RPSN se počítá na roční bázi podle vzorce uvedeného v příloze č. 5 k zákonu č. 145/2010 Sb. Při správně spočítané RPSN platí rovnost mezi sumou čistých současných hodnot všech čerpání spotřebitele a sumou všech jeho plateb. Jestliže smlouva, ve které se sjednává spotřebitelský úvěr, neobsahuje informace stanovené zákonem (včetně správného údaje o výši RPSN), a spotřebitel tuto skutečnost uplatní u věřitele, pokládá se spotřebitelský úvěr od počátku za úročený ve výši diskontní sazby platné v době uzavření této smlouvy uveřejněné Českou národní bankou a ujednání o jiných platbách na spotřebitelský úvěr jsou neplatná. Mechanismus výpočtu je shodný i u spotřebitelských úvěrů poskytnutých v režimu zákona č. 321/2001 Sb., o některých podmínkách sjednávání spotřebitelského úvěru, který byl účinný do 31. prosince 2010. Mohou se však lišit vstupní údaje (náklady), které je nutno při výpočtu RPSN zohlednit. Podle tohoto zákona platí, že v případě, kdy smlouva o úvěru RPSN neobsahuje, nebo obsahuje RPSN v nesprávné výši, se pokládá spotřebitelský úvěr za úvěr úročený ve výši diskontní sazby platné v době uzavření smlouvy, uveřejněné pro příslušné období Českou národní bankou; ujednání o jiných platbách na spotřebitelský úvěr se stávají neplatnými, to vše s účinností ode dne, kdy spotřebitel tuto skutečnost uplatní u věřitele.

Sheet List5
A3: Zadané parametry úvěru
A4: a vypočtená hodnota RPSN
A6: Dlužník (spotřebitel): | D6: =List2!I6 -> Ing. Radek Urban
A7: Poskytovatel úvěru (věřitel): | D7: =List2!I5 -> Petr Kalousek, Ph.D.
A9: Parametry smlouvy/nabídky: | D9: Výše úvěru
D10: Celková výše spotřebitelského úvěru: | G10: =List2!G5 -> 10000 | H10: Kč
D11: z toho úvěr na poplatek za sjednání: | G11: =List2!G7 -> 0 | H11: Kč
D12: z toho úvěr pro potřeby spotřebitele: | G12: =credit -> 10000 | H12: Kč
D13: Anuitní splátky úvěru:
D14: Frekvence splácení: | G14: =List2!I4 -> měsíční
D15: Sjednaný počet splátek: | G15: =pocet -> 12
D16: Sjednaná pravidelná splátka: | G16: =splatka -> 1000 | H16: Kč
D17: Poslední pravidelná splátka: | G17: =splatka2 -> 1000 | H17: Kč
D18: Ostatní náklady úvěru (pojistné, poplatky):
D19: Poplatek za uzavření smlouvy (hotov.): | G19: =List2!B7 -> 100 | H19: Kč
D20: Jiný poplatek splatný hotově ihned: | G20: =List2!B8 -> 0 | H20: Kč
D21: Průběžný pravidelný poplatek 1: | G21: =List2!B9 -> 0 | H21: Kč
D22: Průběžný pravidelný poplatek 2: | G22: =List2!B10 -> 0 | H22: Kč
D23: Časové údaje:
D24: Datum uzavření smlouvy: | G24: =List2!I11 -> 1.1.2012
D25: Datum první splátky: | G25: =List2!I12 -> 1.2.2012
E27: RPSN: | F27: =List2!G6 -> 0.4412270446
A30: Tisk proveden: | B30: =NOW() -> 2014-07-30T11:35:45.670
A31: Kalkulátor RPSN. V 1.0. 2014. Kancelář finančního arbitra.

Sheet List6
A1: vyse | B1: 10000
A2: financost | B2: 0
A3: cisty | B3: 10000
A5: vyse | B5: 10000 | D5: cisty
A6: financost | B6: 0
A7: cisty | B7: 10000
A9: vyse | B9: 0 | D9: financost
A10: financost | B10: 0
A11: cisty | B11: 0
